Workbook

Sheet Úvodní list
B2: PPP projekty k kontextu Stavebnictví 4.0
B7: Příloha č.1 - Datová základna pro analýzu rizik
B11: V této elektronické příloze mé diplomové práce uvádím kompletní datovou základnu, že které jsem vycházel při analýze rizik PPP projektů v kapitole 4 hlavní práce. Veškeré předpoklady, ze kterých jsem vycházel, jsou podrobně popsány v kapitole 4.2 hlavní práce (str. 58).

Sheet Datová základna
AV1: Vážená rizika
B2: Číslo | C2: Zdroj | D2: Jméno | E2: Zákl. kategorie | F2: Kategorie | G2: Forma | H2: Koncesionář | I2: Země původu | J2: Region původu | K2: Rok zahájení | L2: Rok zprovoznění | M2: Velikost | N2: Předpokládaná cena | O2: Reálná cena | P2: Úspěšnost | Q2: Důvod | R2: Příčinná fáze | S2: Inovativní prvky | T2: Ztráta na realizaci projektu | U2: Fin - financování | V2: Fin - makroekon | W2: Fin - záruky | X2: Kons - náklady | Y2: Kons - zdržení | Z2: Kons - kvalita | AA2: Oper - výpadky | AB2: Oper - údržba | AC2: Příjm - výnosy | AD2: Příjm - poptávka | AE2: Příjm - splácení | AF2: Pol - legislativa | AG2: Pol - vypovězení | AH2: Pol - korupce | AI2: Pol - geopol | AJ2: Příp - smlouva | AK2: Příp - partner | AL2: Příp - konkurence | AM2: Příp - povolení | AN2: Příp - pozemky | AO2: Příp - pomalá | AP2: Ost - vyš. moc | AR2: Pomocné výpočty | AS2: Regionální váha | AT2: Úspěšnost*váha | AU2: Hodnoty rozdílu nákladů | AV2: Fin - financování | AW2: Fin - makroekon | AX2: Fin - záruky | AY2: Kons - náklady | AZ2: Kons - zdržení | BA2: Kons - kvalita | BB2: Oper - výpadky | BC2: Oper - údržba | BD2: Příjm - výnosy | BE2: Příjm - poptávka | BF2: Příjm - splácení | BG2: Pol - legislativa | BH2: Pol - vypovězení | BI2: Pol - korupce | BJ2: Pol - geopol | BK2: Příp - smlouva | BL2: Příp - partner | BM2: Příp - konkurence | BN2: Příp - povolení | BO2: Příp - pozemky | BP2: Příp - pomalá | BQ2: Ost - vyš. moc
B3: 1 | C3: str. 12 hlavní práce | D3: Dálnice D47 Brno - Ostrava | E3: Doprava | F3: Silniční infrastruktura | G3: DBFO | H3: Housing & Construction (IL) | I3: ČR | J3: V4 | K3: 2002 | L3: Nezprovozněno | M3: Velmi velký | N3: 125000000000 | O3: 125000000000 | P3: 4 | Q3: Pol - vypovězení | R3: Příprava | S3: - | T3: 650000000 | U3: 0 | V3: 0 | W3: 0 | X3: 0 | Y3: 0 | Z3: 0 | AA3: 0 | AB3: 0 | AC3: 0 | AD3: 0 | AE3: 0 | AF3: 0 | AG3: 1 | AH3: 1 | AI3: 0.5 | AJ3: 1 | AK3: 0 | AL3: 1 | AM3: 0 | AN3: 0 | AO3: 0 | AP3: 0 | AS3: =IF(Tabulka3[[#This Row],[Region původu]]="V4", 1.25, IF(Tabulka3[[#This Row],[Region původu]]="Německé", 1.1, IF(Tabulka3[[#This Row],[Region původu]]="Balkán", 0.9, IF(Tabulka3[[#This Row],[Region původu]]="Sever", 0.9, 1)))) -> 1.25 | AT3: =Tabulka3[[#This Row],[Úspěšnost]]*AS3 -> 5 | AU3: =(Tabulka3[[#This Row],[Ztráta na realizaci projektu]]+Tabulka3[[#This Row],[Reálná cena]])/Tabulka3[[#This Row],[Reálná cena]] -> 1.0052 | AV3: =U3*$AS3 -> 0 | AW3: =V3*$AS3 -> 0 | AX3: 0 | AY3: 0 | AZ3: 0 | BA3: 0 | BB3: 0 | BC3: 0 | BD3: 0 | BE3: 0 | BF3: 0 | BG3: 0 | BH3: 1.25 | BI3: 1.25 | BJ3: 0.625 | BK3: 1.25 | BL3: =AK3*$AS3 -> 0 | BM3: =AL3*$AS3 -> 1.25 | BN3: =AM3*$AS3 -> 0 | BO3: =AN3*$AS3 -> 0 | BP3: 0 | BQ3: 0
B4: 2 | C4: str. 12 hlavní práce | D4: Ubytovna ÚVN | E4: Obecní služba | F4: Zdravotnictví | G4: DBFO | H4: Metrostav Development (CZ) | I4: ČR | J4: V4 | K4: 2011 | L4: Nezprovozněno | M4: Střední | N4: 500000000 | O4: 5500000000 | P4: 4 | Q4: Pol - vypovězení | R4: Příprava | S4: - | T4: 217000000 | U4: 0 | V4: 0 | W4: 0 | X4: 0 | Y4: 0 | Z4: 0 | AA4: 0 | AB4: 0 | AC4: 0 | AD4: 0 | AE4: 0 | AF4: 0 | AG4: 1 | AH4: 1 | AI4: 0 | AJ4: 0 | AK4: 0 | AL4: 0 | AM4: 0 | AN4: 0 | AO4: 0 | AP4: 0 | AS4: =IF(Tabulka3[[#This Row],[Region původu]]="V4", 1.25, IF(Tabulka3[[#This Row],[Region původu]]="Německé", 1.1, IF(Tabulka3[[#This Row],[Region původu]]="Balkán", 0.9, IF(Tabulka3[[#This Row],[Region původu]]="Sever", 0.9, 1)))) -> 1.25 | AT4: =Tabulka3[[#This Row],[Úspěšnost]]*AS4 -> 5 | AU4: =(Tabulka3[[#This Row],[Ztráta na realizaci projektu]]+Tabulka3[[#This Row],[Reálná cena]])/Tabulka3[[#This Row],[Reálná cena]] -> 1.039454545 | AV4: =U4*$AS4 -> 0 | AW4: =V4*$AS4 -> 0 | AX4: =W4*$AS4 -> 0 | AY4: =X4*$AS4 -> 0 | AZ4: =Y4*$AS4 -> 0 | BA4: =Z4*$AS4 -> 0 | BB4: =AA4*$AS4 -> 0 | BC4: =AB4*$AS4 -> 0 | BD4: =AC4*$AS4 -> 0 | BE4: =AD4*$AS4 -> 0 | BF4: =AE4*$AS4 -> 0 | BG4: =AF4*$AS4 -> 0 | BH4: =AG4*$AS4 -> 1.25 | BI4: =AH4*$AS4 -> 1.25 | BJ4: =AI4*$AS4 -> 0 | BK4: =AJ4*$AS4 -> 0 | BL4: =AK4*$AS4 -> 0 | BM4: =AL4*$AS4 -> 0 | BN4: =AM4*$AS4 -> 0 | BO4: =AN4*$AS4 -> 0 | BP4: =AO4*$AS4 -> 0 | BQ4: =AP4*$AS4 -> 0
B5: 3 | C5: str. 14 hlavní práce | D5: Parkovací dům Rychtářka | E5: Doprava | F5: Parkovací infrasturktura | G5: DBFO | H5: Equity Capital (CZ) | I5: ČR | J5: V4 | K5: 2010 | L5: 2011 | M5: Malý | N5: 250000000 | O5: 351000000 | P5: 2 | Q5: Příjm - poptávka | R5: Provoz | S5: - | T5: - | U5: 0 | V5: 0 | W5: 0 | X5: 1 | Y5: 0 | Z5: 0 | AA5: 0 | AB5: 0 | AC5: 1 | AD5: 1 | AE5: 0 | AF5: 0 | AG5: 0 | AH5: 0 | AI5: 0 | AJ5: 0 | AK5: 0 | AL5: 0 | AM5: 0 | AN5: 0 | AO5: 0 | AP5: 0 | AS5: =IF(Tabulka3[[#This Row],[Region původu]]="V4", 1.25, IF(Tabulka3[[#This Row],[Region původu]]="Německé", 1.1, IF(Tabulka3[[#This Row],[Region původu]]="Balkán", 0.9, IF(Tabulka3[[#This Row],[Region původu]]="Sever", 0.9, 1)))) -> 1.25 | AT5: =Tabulka3[[#This Row],[Úspěšnost]]*AS5 -> 2.5 | AU5: =Tabulka3[[#This Row],[Reálná cena]]/Tabulka3[[#This Row],[Předpokládaná cena]] -> 1.404 | AV5: 0 | AW5: 0 | AX5: 0 | AY5: 1.25 | AZ5: 0 | BA5: 0 | BB5: 0 | BC5: 0 | BD5: 1.25 | BE5: 1.25 | BF5: 0 | BG5: 0 | BH5: 0 | BI5: 0 | BJ5: 0 | BK5: 0 | BL5: 0 | BM5: 0 | BN5: 0 | BO5: 0 | BP5: 0 | BQ5: 0
B6: 4 | C6: str. 14 hlavní práce | D6: Depo MHD Plzeň | E6: Doprava | F6: Hromadná doprava | G6: DBFO | H6: Škoda Transportation (CZ) | I6: ČR | J6: V4 | K6: 2013 | L6: 2014 | M6: Velký | N6: 16000000000 | O6: 14000000000 | P6: 1 | Q6: - | R6: - | S6: - | T6: - | U6: 0 | V6: 0 | W6: 0 | X6: 0 | Y6: 0 | Z6: 0 | AA6: 0 | AB6: 0 | AC6: 0 | AD6: 0 | AE6: 0 | AF6: 0 | AG6: 0 | AH6: 0 | AI6: 0 | AJ6: 0 | AK6: 0 | AL6: 0 | AM6: 0 | AN6: 0 | AO6: 0 | AP6: 0 | AS6: =IF(Tabulka3[[#This Row],[Region původu]]="V4", 1.25, IF(Tabulka3[[#This Row],[Region původu]]="Německé", 1.1, IF(Tabulka3[[#This Row],[Region původu]]="Balkán", 0.9, IF(Tabulka3[[#This Row],[Region původu]]="Sever", 0.9, 1)))) -> 1.25 | AT6: =Tabulka3[[#This Row],[Úspěšnost]]*AS6 -> 1.25 | AU6: =Tabulka3[[#This Row],[Reálná cena]]/Tabulka3[[#This Row],[Předpokládaná cena]] -> 0.875 | AV6: 0 | AW6: 0 | AX6: 0 | AY6: 0 | AZ6: 0 | BA6: 0 | BB6: 0 | BC6: 0 | BD6: 0 | BE6: 0 | BF6: 0 | BG6: 0 | BH6: 0 | BI6: 0 | BJ6: 0 | BK6: 0 | BL6: 0 | BM6: 0 | BN6: 0 | BO6: 0 | BP6: 0 | BQ6: 0
B7: 5 | C7: str. 16 hlavní práce, [D1] | D7: Eurotunel | E7: Doprava | F7: Železniční infrastruktura | G7: DBFO | H7: Eurotunnel (GB) | I7: Velká Británie | J7: Západ | K7: 1988 | L7: 1994 | M7: Velmi velký | N7: 162000000000 | O7: 266000000000 | P7: 3 | Q7: Fin - financování | R7: Provoz | S7: - | T7: - | U7: 1 | V7: 0.5 | W7: 0 | X7: 1 | Y7: 1 | Z7: 1 | AA7: 1 | AB7: 0 | AC7: 1 | AD7: 1 | AE7: 0 | AF7: 0 | AG7: 0 | AH7: 0 | AI7: 0 | AJ7: 0 | AK7: 0 | AL7: 0 | AM7: 0 | AN7: 0 | AO7: 0 | AP7: 0.5 | AS7: =IF(Tabulka3[[#This Row],[Region původu]]="V4", 1.25, IF(Tabulka3[[#This Row],[Region původu]]="Německé", 1.1, IF(Tabulka3[[#This Row],[Region původu]]="Balkán", 0.9, IF(Tabulka3[[#This Row],[Region původu]]="Sever", 0.9, 1)))) -> 1 | AT7: =Tabulka3[[#This Row],[Úspěšnost]]*AS7 -> 3 | AU7: =Tabulka3[[#This Row],[Reálná cena]]/Tabulka3[[#This Row],[Předpokládaná cena]] -> 1.641975309 | AV7: 1 | AW7: 0.5 | AX7: 0 | AY7: 1 | AZ7: 1 | BA7: 1 | BB7: 1 | BC7: 0 | BD7: 1 | BE7: 1 | BF7: 0 | BG7: 0 | BH7: 0 | BI7: 0 | BJ7: 0 | BK7: 0 | BL7: 0 | BM7: 0 | BN7: 0 | BO7: 0 | BP7: 0 | BQ7: 0.5
B8: 6 | C8: str. 17 hlavní práce, [D2] | D8: Metro Londýn | E8: Doprava | F8: Hromadná doprava | G8: FO | H8: Metronet (GB) | I8: Velká Británie | J8: Západ | K8: 1998 | L8: 1998 | M8: Velmi velký | N8: 206000000000 | O8: =N8+74000000000 -> 280000000000 | P8: 4 | Q8: Pol - vypovězení | R8: Provoz | S8: - | U8: 1 | V8: 0 | W8: 0.5 | X8: 1 | Y8: 0 | Z8: 0 | AA8: 0.5 | AB8: 0.5 | AC8: 1 | AD8: 0 | AE8: 0 | AF8: 0 | AG8: 1 | AH8: 0 | AI8: 0 | AJ8: 0 | AK8: 1 | AL8: 1 | AM8: 1 | AN8: 0 | AO8: 1 | AP8: 0 | AS8: =IF(Tabulka3[[#This Row],[Region původu]]="V4", 1.25, IF(Tabulka3[[#This Row],[Region původu]]="Německé", 1.1, IF(Tabulka3[[#This Row],[Region původu]]="Balkán", 0.9, IF(Tabulka3[[#This Row],[Region původu]]="Sever", 0.9, 1)))) -> 1 | AT8: =Tabulka3[[#This Row],[Úspěšnost]]*AS8 -> 4 | AU8: =Tabulka3[[#This Row],[Reálná cena]]/Tabulka3[[#This Row],[Předpokládaná cena]] -> 1.359223301 | AV8: 1 | AW8: 0 | AX8: 0.5 | AY8: 1 | AZ8: 0 | BA8: 0 | BB8: 0.5 | BC8: 0.5 | BD8: 1 | BE8: 0 | BF8: 0 | BG8: 0 | BH8: 1 | BI8: 0 | BJ8: 0 | BK8: 0 | BL8: 1 | BM8: 1 | BN8: 1 | BO8: 0 | BP8: 1 | BQ8: 0
B9: 7 | C9: str. 18 hlavní práce, [D3] | D9: Dálnice D1 Martin - Prešov | E9: Doprava | F9: Silniční infrastruktura | G9: DBFO | H9: Bouygues (F) | I9: Slovensko | J9: V4 | K9: 2010 | L9: Nezprovozněno | M9: Velmi velký | N9: 48000000000 | O9: 82000000000 | P9: 4 | Q9: Pol - vypovězení | R9: Příprava | S9: - | T9: 2000000000 | U9: 1 | V9: 1 | W9: 0.5 | X9: 1 | Y9: 0 | Z9: 0 | AA9: 0 | AB9: 0 | AC9: 0 | AD9: 0 | AE9: 0 | AF9: 1 | AG9: 1 | AH9: 1 | AI9: 0 | AJ9: 0 | AK9: 0.5 | AL9: 0 | AM9: 1 | AN9: 0 | AO9: 1 | AP9: 0 | AS9: =IF(Tabulka3[[#This Row],[Region původu]]="V4", 1.25, IF(Tabulka3[[#This Row],[Region původu]]="Německé", 1.1, IF(Tabulka3[[#This Row],[Region původu]]="Balkán", 0.9, IF(Tabulka3[[#This Row],[Region původu]]="Sever", 0.9, 1)))) -> 1.25 | AT9: =Tabulka3[[#This Row],[Úspěšnost]]*AS9 -> 5 | AU9: =(Tabulka3[[#This Row],[Ztráta na realizaci projektu]]+Tabulka3[[#This Row],[Reálná cena]])/Tabulka3[[#This Row],[Reálná cena]] -> 1.024390244 | AV9: 1.25 | AW9: 1.25 | AX9: 0.625 | AY9: 1.25 | AZ9: 0 | BA9: 0 | BB9: 0 | BC9: 0 | BD9: 0 | BE9: 0 | BF9: 0 | BG9: 1.25 | BH9: 1.25 | BI9: 1.25 | BJ9: 0 | BK9: 0 | BL9: 0.625 | BM9: 0 | BN9: 1.25 | BO9: 0 | BP9: 1.25 | BQ9: 0
B10: 8 | C10: str. 18 hlavní práce | D10: Rychl. silnice R1 Nitra - B. Bystrica | E10: Doprava | F10: Silniční infrastruktura | G10: DBFO | H10: Vinci (F) | I10: Slovensko | J10: V4 | K10: 2009 | L10: 2012 | M10: Velmi velký | N10: 40000000000 | O10: 40000000000 | P10: 1 | Q10: - | R10: - | S10: - | T10: - | U10: 0 | V10: 0 | W10: 0 | X10: 0 | Y10: 0 | Z10: 0 | AA10: 0 | AB10: 0 | AC10: 0 | AD10: 0 | AE10: 0 | AF10: 0 | AG10: 0 | AH10: 0 | AI10: 0 | AJ10: 0 | AK10: 0 | AL10: 0 | AM10: 0 | AN10: 0 | AO10: 0 | AP10: 0 | AS10: =IF(Tabulka3[[#This Row],[Region původu]]="V4", 1.25, IF(Tabulka3[[#This Row],[Region původu]]="Německé", 1.1, IF(Tabulka3[[#This Row],[Region původu]]="Balkán", 0.9, IF(Tabulka3[[#This Row],[Region původu]]="Sever", 0.9, 1)))) -> 1.25 | AT10: =Tabulka3[[#This Row],[Úspěšnost]]*AS10 -> 1.25 | AU10: =Tabulka3[[#This Row],[Reálná cena]]/Tabulka3[[#This Row],[Předpokládaná cena]] -> 1 | AV10: 0 | AW10: 0 | AX10: 0 | AY10: 0 | AZ10: 0 | BA10: 0 | BB10: 0 | BC10: 0 | BD10: 0 | BE10: 0 | BF10: 0 | BG10: 0 | BH10: 0 | BI10: 0 | BJ10: 0 | BK10: 0 | BL10: 0 | BM10: 0 | BN10: 0 | BO10: 0 | BP10: 0 | BQ10: 0
B11: 9 | C11: str. 19 hlavní práce | D11: Obchvat Bratislavy (D4R7) | E11: Doprava | F11: Silniční infrastruktura | G11: DBFO | H11: Cintra (E) | I11: Slovensko | J11: V4 | K11: 2017 | L11: Ve výstavbě | M11: Velmi velký | N11: 51000000000 | O11: 51000000000 | P11: 2 | Q11: Příp - pomalá | R11: Příprava | S11: - | T11: - | U11: 0 | V11: 0 | W11: 0 | X11: 0 | Y11: 0.5 | Z11: 0.5 | AA11: 0 | AB11: 0 | AC11: 0 | AD11: 0 | AE11: 0 | AF11: 0 | AG11: 0 | AH11: 0 | AI11: 0 | AJ11: 0 | AK11: 0 | AL11: 0 | AM11: 0.5 | AN11: 0 | AO11: 1 | AP11: 0 | AS11: =IF(Tabulka3[[#This Row],[Region původu]]="V4", 1.25, IF(Tabulka3[[#This Row],[Region původu]]="Německé", 1.1, IF(Tabulka3[[#This Row],[Region původu]]="Balkán", 0.9, IF(Tabulka3[[#This Row],[Region původu]]="Sever", 0.9, 1)))) -> 1.25 | AT11: =Tabulka3[[#This Row],[Úspěšnost]]*AS11 -> 2.5 | AU11: =Tabulka3[[#This Row],[Reálná cena]]/Tabulka3[[#This Row],[Předpokládaná cena]] -> 1 | AV11: 0 | AW11: 0 | AX11: 0 | AY11: 0 | AZ11: 0.625 | BA11: 0.625 | BB11: 0 | BC11: 0 | BD11: 0 | BE11: 0 | BF11: 0 | BG11: 0 | BH11: 0 | BI11: 0 | BJ11: 0 | BK11: 0 | BL11: 0 | BM11: 0 | BN11: 0.625 | BO11: 0 | BP11: 1.25 | BQ11: 0
B12: 10 | C12: str. 19 hlavní práce | D12: Nákladní nádraží Žilina | E12: Doprava | F12: Železniční infrastruktura | G12: FO | H12: METRANS (CZ) | I12: Slovensko | J12: V4 | K12: 2018 | L12: 2018 | M12: Malý | N12: 96000000 | O12: 96000000 | P12: 1 | Q12: - | R12: - | S12: - | T12: - | U12: 0 | V12: 0 | W12: 0 | X12: 0 | Y12: 0 | Z12: 0 | AA12: 0 | AB12: 0 | AC12: 0 | AD12: 0 | AE12: 0 | AF12: 0 | AG12: 0 | AH12: 0 | AI12: 0 | AJ12: 0 | AK12: 0 | AL12: 0 | AM12: 0 | AN12: 0 | AO12: 0 | AP12: 0 | AS12: =IF(Tabulka3[[#This Row],[Region původu]]="V4", 1.25, IF(Tabulka3[[#This Row],[Region původu]]="Německé", 1.1, IF(Tabulka3[[#This Row],[Region původu]]="Balkán", 0.9, IF(Tabulka3[[#This Row],[Region původu]]="Sever", 0.9, 1)))) -> 1.25 | AT12: =Tabulka3[[#This Row],[Úspěšnost]]*AS12 -> 1.25 | AU12: =Tabulka3[[#This Row],[Reálná cena]]/Tabulka3[[#This Row],[Předpokládaná cena]] -> 1 | AV12: 0 | AW12: 0 | AX12: 0 | AY12: 0 | AZ12: 0 | BA12: 0 | BB12: 0 | BC12: 0 | BD12: 0 | BE12: 0 | BF12: 0 | BG12: 0 | BH12: 0 | BI12: 0 | BJ12: 0 | BK12: 0 | BL12: 0 | BM12: 0 | BN12: 0 | BO12: 0 | BP12: 0 | BQ12: 0
B13: 11 | C13: str. 20 hlavní práce | D13: Dálnice Podgorica - Mateševo | E13: Doprava | F13: Silniční infrastruktura | G13: DBFO | H13: CRBC (CN) | I13: Černá Hora | J13: Balkán | K13: 2006 | L13: 2022 | M13: Velmi velký | N13: 25000000000 | O13: 25000000000 | P13: 4 | Q13: Příp - smlouva | R13: Příprava | S13: - | T13: - | U13: 1 | V13: 0.5 | W13: 1 | X13: 1 | Y13: 1 | Z13: 1 | AA13: 0 | AB13: 0 | AC13: 0 | AD13: 0 | AE13: 1 | AF13: 0.5 | AG13: 0 | AH13: 0 | AI13: 1 | AJ13: 1 | AK13: 1 | AL13: 1 | AM13: 0 | AN13: 0 | AO13: 0.5 | AP13: 0 | AS13: =IF(Tabulka3[[#This Row],[Region původu]]="V4", 1.25, IF(Tabulka3[[#This Row],[Region původu]]="Německé", 1.1, IF(Tabulka3[[#This Row],[Region původu]]="Balkán", 0.9, IF(Tabulka3[[#This Row],[Region původu]]="Sever", 0.9, 1)))) -> 0.9 | AT13: =Tabulka3[[#This Row],[Úspěšnost]]*AS13 -> 3.6 | AU13: =Tabulka3[[#This Row],[Reálná cena]]/Tabulka3[[#This Row],[Předpokládaná cena]] -> 1 | AV13: 0.9 | AW13: 0.45 | AX13: 0.9 | AY13: 0.9 | AZ13: 0.9 | BA13: 0.9 | BB13: 0 | BC13: 0 | BD13: 0 | BE13: 0 | BF13: 0.9 | BG13: 0.45 | BH13: 0 | BI13: 0 | BJ13: 0.9 | BK13: 0.9 | BL13: 0.9 | BM13: 0.9 | BN13: 0 | BO13: 0 | BP13: 0.45 | BQ13: 0
B14: 12 | C14: str. 20 hlavní práce, [D4] | D14: Provoz přístavu Bar | E14: Doprava | F14: Námořní infrastruktura | G14: FO | H14: Global Ports Holding (GB) | I14: Černá Hora | J14: Balkán | K14: 2013 | L14: 2013 | M14: Velký | N14: N/A | O14: N/A | P14: 2 | Q14: Oper - údržba | R14: Provoz | S14: - | T14: - | U14: 0 | V14: 0 | W14: 0 | X14: 0 | Y14: 0 | Z14: 0 | AA14: 0 | AB14: 0.5 | AC14: 0 | AD14: 0 | AE14: 0 | AF14: 0.5 | AG14: 0 | AH14: 0 | AI14: 0 | AJ14: 0 | AK14: 0 | AL14: 0 | AM14: 0 | AN14: 0 | AO14: 0 | AP14: 0 | AS14: =IF(Tabulka3[[#This Row],[Region původu]]="V4", 1.25, IF(Tabulka3[[#This Row],[Region původu]]="Německé", 1.1, IF(Tabulka3[[#This Row],[Region původu]]="Balkán", 0.9, IF(Tabulka3[[#This Row],[Region původu]]="Sever", 0.9, 1)))) -> 0.9 | AT14: =Tabulka3[[#This Row],[Úspěšnost]]*AS14 -> 1.8 | AU14: 1 | AV14: 0 | AW14: 0 | AX14: 0 | AY14: 0 | AZ14: 0 | BA14: 0 | BB14: 0 | BC14: 0.45 | BD14: 0 | BE14: 0 | BF14: 0 | BG14: 0.45 | BH14: 0 | BI14: 0 | BJ14: 0 | BK14: 0 | BL14: 0 | BM14: 0 | BN14: 0 | BO14: 0 | BP14: 0 | BQ14: 0
B15: 13 | C15: [D5,D6] | D15: Dálnice A1 Gdaňsk - Toruň | E15: Doprava | F15: Silniční infrastruktura | G15: DBFO | H15: Skanska (S) | I15: Polsko | J15: V4 | K15: 2004 | L15: 2011 | M15: Velmi velký | N15: 34000000000 | O15: 34000000000 | P15: 1 | Q15: - | R15: - | S15: - | T15: - | U15: 0 | V15: 0.5 | W15: 0 | X15: 0 | Y15: 0 | Z15: 0 | AA15: 0 | AB15: 0 | AC15: 0 | AD15: 0 | AE15: 0 | AF15: 0 | AG15: 0 | AH15: 0 | AI15: 0 | AJ15: 0 | AK15: 0 | AL15: 0 | AM15: 0 | AN15: 0 | AO15: 0 | AP15: 0 | AS15: =IF(Tabulka3[[#This Row],[Region původu]]="V4", 1.25, IF(Tabulka3[[#This Row],[Region původu]]="Německé", 1.1, IF(Tabulka3[[#This Row],[Region původu]]="Balkán", 0.9, IF(Tabulka3[[#This Row],[Region původu]]="Sever", 0.9, 1)))) -> 1.25 | AT15: =Tabulka3[[#This Row],[Úspěšnost]]*AS15 -> 1.25 | AU15: =Tabulka3[[#This Row],[Reálná cena]]/Tabulka3[[#This Row],[Předpokládaná cena]] -> 1 | AV15: 0 | AW15: 0.625 | AX15: 0 | AY15: 0 | AZ15: 0 | BA15: 0 | BB15: 0 | BC15: 0 | BD15: 0 | BE15: 0 | BF15: 0 | BG15: 0 | BH15: 0 | BI15: 0 | BJ15: 0 | BK15: 0 | BL15: 0 | BM15: 0 | BN15: 0 | BO15: 0 | BP15: 0 | BQ15: 0
B16: 14 | C16: [D7] | D16: Parkovací dům Wroclaw | E16: Doprava | F16: Parkovací infrasturktura | G16: DBFO | H16: Budimex (PL) | I16: Polsko | J16: V4 | K16: 2012 | L16: 2014 | M16: Malý | N16: 240000000 | O16: 240000000 | P16: 1 | Q16: - | R16: - | S16: - | T16: - | U16: 0 | V16: 0 | W16: 0 | X16: 0 | Y16: 0 | Z16: 0 | AA16: 0 | AB16: 0 | AC16: 0 | AD16: 0 | AE16: 0 | AF16: 0 | AG16: 0 | AH16: 0 | AI16: 0 | AJ16: 0 | AK16: 0 | AL16: 0 | AM16: 0 | AN16: 0 | AO16: 0 | AP16: 0 | AS16: =IF(Tabulka3[[#This Row],[Region původu]]="V4", 1.25, IF(Tabulka3[[#This Row],[Region původu]]="Německé", 1.1, IF(Tabulka3[[#This Row],[Region původu]]="Balkán", 0.9, IF(Tabulka3[[#This Row],[Region původu]]="Sever", 0.9, 1)))) -> 1.25 | AT16: =Tabulka3[[#This Row],[Úspěšnost]]*AS16 -> 1.25 | AU16: =Tabulka3[[#This Row],[Reálná cena]]/Tabulka3[[#This Row],[Předpokládaná cena]] -> 1 | AV16: 0 | AW16: 0 | AX16: 0 | AY16: 0 | AZ16: 0 | BA16: 0 | BB16: 0 | BC16: 0 | BD16: 0 | BE16: 0 | BF16: 0 | BG16: 0 | BH16: 0 | BI16: 0 | BJ16: 0 | BK16: 0 | BL16: 0 | BM16: 0 | BN16: 0 | BO16: 0 | BP16: 0 | BQ16: 0
B17: 15 | C17: [D8,D9] | D17: Tramvajové tratě Krakow | E17: Doprava | F17: Hromadná doprava | G17: DBFO | H17: Gulermak (TR) | I17: Polsko | J17: V4 | K17: 2020 | L17: Ve výstavbě | M17: Velký | N17: 3800000000 | O17: 3800000000 | P17: 3 | Q17: Kons - zdržení | R17: Realizace | S17: - | T17: 730000000 | U17: 0 | V17: 0 | W17: 0 | X17: 1 | Y17: 1 | Z17: 0 | AA17: 0 | AB17: 0 | AC17: 0 | AD17: 0 | AE17: 0 | AF17: 1 | AG17: 0 | AH17: 0 | AI17: 0 | AJ17: 0 | AK17: 0 | AL17: 0 | AM17: 0 | AN17: 0 | AO17: 0.5 | AP17: 0 | AS17: =IF(Tabulka3[[#This Row],[Region původu]]="V4", 1.25, IF(Tabulka3[[#This Row],[Region původu]]="Německé", 1.1, IF(Tabulka3[[#This Row],[Region původu]]="Balkán", 0.9, IF(Tabulka3[[#This Row],[Region původu]]="Sever", 0.9, 1)))) -> 1.25 | AT17: =Tabulka3[[#This Row],[Úspěšnost]]*AS17 -> 3.75 | AU17: =(Tabulka3[[#This Row],[Ztráta na realizaci projektu]]+Tabulka3[[#This Row],[Reálná cena]])/Tabulka3[[#This Row],[Reálná cena]] -> 1.192105263 | AV17: 0 | AW17: 0 | AX17: 0 | AY17: 1.25 | AZ17: 1.25 | BA17: 0 | BB17: 0 | BC17: 0 | BD17: 0 | BE17: 0 | BF17: 0 | BG17: 1.25 | BH17: 0 | BI17: 0 | BJ17: 0 | BK17: 0 | BL17: 0 | BM17: 0 | BN17: 0 | BO17: 0 | BP17: 0.625 | BQ17: 0
B18: 16 | C18: [D8,D10] | D18: Elektrárna a teplárna v Olsztyně | E18: Obecní služba | F18: Energetika | G18: DBFO | H18: Meridiam (FR) | I18: Polsko | J18: V4 | K18: 2018 | L18: Ve výstavbě | M18: Velký | N18: 4800000000 | O18: 4800000000 | P18: 1 | Q18: - | R18: - | S18: - | T18: - | U18: 0 | V18: 0 | W18: 0 | X18: 0 | Y18: 0 | Z18: 0 | AA18: 0 | AB18: 0 | AC18: 0 | AD18: 0 | AE18: 0 | AF18: 0 | AG18: 0 | AH18: 0 | AI18: 0 | AJ18: 0 | AK18: 0 | AL18: 0 | AM18: 0 | AN18: 0 | AO18: 0 | AP18: 0 | AS18: =IF(Tabulka3[[#This Row],[Region původu]]="V4", 1.25, IF(Tabulka3[[#This Row],[Region původu]]="Německé", 1.1, IF(Tabulka3[[#This Row],[Region původu]]="Balkán", 0.9, IF(Tabulka3[[#This Row],[Region původu]]="Sever", 0.9, 1)))) -> 1.25 | AT18: =Tabulka3[[#This Row],[Úspěšnost]]*AS18 -> 1.25 | AU18: =Tabulka3[[#This Row],[Reálná cena]]/Tabulka3[[#This Row],[Předpokládaná cena]] -> 1 | AV18: 0 | AW18: 0 | AX18: 0 | AY18: 0 | AZ18: 0 | BA18: 0 | BB18: 0 | BC18: 0 | BD18: 0 | BE18: 0 | BF18: 0 | BG18: 0 | BH18: 0 | BI18: 0 | BJ18: 0 | BK18: 0 | BL18: 0 | BM18: 0 | BN18: 0 | BO18: 0 | BP18: 0 | BQ18: 0
B19: 17 | C19: [D8,D11] | D19: Odpadní hospodářství v Poznani | E19: Obecní služba | F19: Odpadní hospodářství | G19: DBFO | H19: SUEZ (FR) | I19: Polsko | J19: V4 | K19: 2013 | L19: 2016 | M19: Velký | N19: 4200000000 | O19: 4200000000 | P19: 1 | Q19: - | R19: - | S19: - | T19: - | U19: 0 | V19: 0 | W19: 0 | X19: 0 | Y19: 0 | Z19: 0 | AA19: 0 | AB19: 0 | AC19: 0 | AD19: 0 | AE19: 0 | AF19: 0 | AG19: 0 | AH19: 0 | AI19: 0 | AJ19: 0 | AK19: 0 | AL19: 0 | AM19: 0 | AN19: 0 | AO19: 0 | AP19: 0 | AS19: =IF(Tabulka3[[#This Row],[Region původu]]="V4", 1.25, IF(Tabulka3[[#This Row],[Region původu]]="Německé", 1.1, IF(Tabulka3[[#This Row],[Region původu]]="Balkán", 0.9, IF(Tabulka3[[#This Row],[Region původu]]="Sever", 0.9, 1)))) -> 1.25 | AT19: =Tabulka3[[#This Row],[Úspěšnost]]*AS19 -> 1.25 | AU19: =Tabulka3[[#This Row],[Reálná cena]]/Tabulka3[[#This Row],[Předpokládaná cena]] -> 1 | AV19: 0 | AW19: 0 | AX19: 0 | AY19: 0 | AZ19: 0 | BA19: 0 | BB19: 0 | BC19: 0 | BD19: 0 | BE19: 0 | BF19: 0 | BG19: 0 | BH19: 0 | BI19: 0 | BJ19: 0 | BK19: 0 | BL19: 0 | BM19: 0 | BN19: 0 | BO19: 0 | BP19: 0 | BQ19: 0
B20: 18 | C20: [D8,D12] | D20: Podzemní parkoviště Varšava | E20: Doprava | F20: Parkovací infrasturktura | G20: DBFO | H20: Mota-Engil (PR) | I20: Polsko | J20: V4 | K20: 2012 | L20: Ve výstavbě | M20: Malý | N20: 460000000 | O20: 460000000 | P20: 2 | Q20: Pol - legislativa | R20: Příprava | S20: - | T20: - | U20: 0 | V20: 0 | W20: 0 | X20: 0 | Y20: 0 | Z20: 0 | AA20: 0 | AB20: 0 | AC20: 0 | AD20: 0.5 | AE20: 0 | AF20: 1 | AG20: 0 | AH20: 0 | AI20: 0 | AJ20: 0 | AK20: 0 | AL20: 0 | AM20: 0 | AN20: 0 | AO20: 1 | AP20: 0 | AS20: =IF(Tabulka3[[#This Row],[Region původu]]="V4", 1.25, IF(Tabulka3[[#This Row],[Region původu]]="Německé", 1.1, IF(Tabulka3[[#This Row],[Region původu]]="Balkán", 0.9, IF(Tabulka3[[#This Row],[Region původu]]="Sever", 0.9, 1)))) -> 1.25 | AT20: =Tabulka3[[#This Row],[Úspěšnost]]*AS20 -> 2.5 | AU20: =Tabulka3[[#This Row],[Reálná cena]]/Tabulka3[[#This Row],[Předpokládaná cena]] -> 1 | AV20: 0 | AW20: 0 | AX20: 0 | AY20: 0 | AZ20: 0 | BA20: 0 | BB20: 0 | BC20: 0 | BD20: 0 | BE20: 0.625 | BF20: 0 | BG20: 1.25 | BH20: 0 | BI20: 0 | BJ20: 0 | BK20: 0 | BL20: 0 | BM20: 0 | BN20: 0 | BO20: 0 | BP20: 1.25 | BQ20: 0
B21: 19 | C21: [D8] | D21: Kongresové centrum Katovice | E21: Obecní služba | F21: Kultura | G21: FO | H21: PTWP (PL) | I21: Polsko | J21: V4 | K21: 2016 | L21: 2016 | M21: Střední | N21: 1300000000 | O21: 1300000000 | P21: 1 | Q21: - | R21: - | S21: - | T21: - | U21: 0 | V21: 0 | W21: 0 | X21: 0 | Y21: 0 | Z21: 0 | AA21: 0 | AB21: 0 | AC21: 0 | AD21: 0 | AE21: 0 | AF21: 0 | AG21: 0 | AH21: 0 | AI21: 0 | AJ21: 0 | AK21: 0 | AL21: 0 | AM21: 0 | AN21: 0 | AO21: 0 | AP21: 0 | AS21: =IF(Tabulka3[[#This Row],[Region původu]]="V4", 1.25, IF(Tabulka3[[#This Row],[Region původu]]="Německé", 1.1, IF(Tabulka3[[#This Row],[Region původu]]="Balkán", 0.9, IF(Tabulka3[[#This Row],[Region původu]]="Sever", 0.9, 1)))) -> 1.25 | AT21: =Tabulka3[[#This Row],[Úspěšnost]]*AS21 -> 1.25 | AU21: =Tabulka3[[#This Row],[Reálná cena]]/Tabulka3[[#This Row],[Předpokládaná cena]] -> 1 | AV21: 0 | AW21: 0 | AX21: 0 | AY21: 0 | AZ21: 0 | BA21: 0 | BB21: 0 | BC21: 0 | BD21: 0 | BE21: 0 | BF21: 0 | BG21: 0 | BH21: 0 | BI21: 0 | BJ21: 0 | BK21: 0 | BL21: 0 | BM21: 0 | BN21: 0 | BO21: 0 | BP21: 0 | BQ21: 0
B22: 20 | C22: [D8,D13] | D22: Muzeum mazovského venkova | E22: Obecní služba | F22: Kultura | G22: FO | H22: Centrum Urszula Tomaszewska (PL) | I22: Polsko | J22: V4 | K22: 2015 | L22: 2015 | M22: Malý | N22: 360000000 | O22: 360000000 | P22: 1 | Q22: - | R22: - | S22: - | T22: - | U22: 0 | V22: 0 | W22: 0 | X22: 0 | Y22: 0 | Z22: 0 | AA22: 0 | AB22: 0 | AC22: 0 | AD22: 0 | AE22: 0 | AF22: 0 | AG22: 0 | AH22: 0 | AI22: 0 | AJ22: 0 | AK22: 0 | AL22: 0 | AM22: 0 | AN22: 0 | AO22: 0 | AP22: 0 | AS22: =IF(Tabulka3[[#This Row],[Region původu]]="V4", 1.25, IF(Tabulka3[[#This Row],[Region původu]]="Německé", 1.1, IF(Tabulka3[[#This Row],[Region původu]]="Balkán", 0.9, IF(Tabulka3[[#This Row],[Region původu]]="Sever", 0.9, 1)))) -> 1.25 | AT22: =Tabulka3[[#This Row],[Úspěšnost]]*AS22 -> 1.25 | AU22: =Tabulka3[[#This Row],[Reálná cena]]/Tabulka3[[#This Row],[Předpokládaná cena]] -> 1 | AV22: 0 | AW22: 0 | AX22: 0 | AY22: 0 | AZ22: 0 | BA22: 0 | BB22: 0 | BC22: 0 | BD22: 0 | BE22: 0 | BF22: 0 | BG22: 0 | BH22: 0 | BI22: 0 | BJ22: 0 | BK22: 0 | BL22: 0 | BM22: 0 | BN22: 0 | BO22: 0 | BP22: 0 | BQ22: 0
B23: 21 | C23: [D8] | D23: Komunální komunikace Słupsk | E23: Doprava | F23: Silniční infrastruktura | G23: DBFO | H23: BDB Partnerstwo (PL) | I23: Polsko | J23: V4 | K23: 2019 | L23: Ve výstavbě | M23: Malý | N23: 240000000 | O23: 240000000 | P23: 1 | Q23: - | R23: - | S23: - | T23: - | U23: 0 | V23: 0 | W23: 0 | X23: 0 | Y23: 0 | Z23: 0 | AA23: 0 | AB23: 0 | AC23: 0 | AD23: 0 | AE23: 0 | AF23: 0 | AG23: 0 | AH23: 0 | AI23: 0 | AJ23: 0 | AK23: 0 | AL23: 0 | AM23: 0 | AN23: 0 | AO23: 0 | AP23: 0 | AS23: =IF(Tabulka3[[#This Row],[Region původu]]="V4", 1.25, IF(Tabulka3[[#This Row],[Region původu]]="Německé", 1.1, IF(Tabulka3[[#This Row],[Region původu]]="Balkán", 0.9, IF(Tabulka3[[#This Row],[Region původu]]="Sever", 0.9, 1)))) -> 1.25 | AT23: =Tabulka3[[#This Row],[Úspěšnost]]*AS23 -> 1.25 | AU23: =Tabulka3[[#This Row],[Reálná cena]]/Tabulka3[[#This Row],[Předpokládaná cena]] -> 1 | AV23: 0 | AW23: 0 | AX23: 0 | AY23: 0 | AZ23: 0 | BA23: 0 | BB23: 0 | BC23: 0 | BD23: 0 | BE23: 0 | BF23: 0 | BG23: 0 | BH23: 0 | BI23: 0 | BJ23: 0 | BK23: 0 | BL23: 0 | BM23: 0 | BN23: 0 | BO23: 0 | BP23: 0 | BQ23: 0
B24: 22 | C24: [D8,D14] | D24: Půjčovna elektroaut Wroclaw | E24: Doprava | F24: Ostatní dopr. infrstr. | G24: DBFO | H24: ENIGMA SOI (PL) | I24: Polsko | J24: V4 | K24: 2017 | L24: 2020 | M24: Malý | N24: 108000000 | O24: 108000000 | P24: 4 | Q24: Příjm - výnosy | R24: Příprava | S24: - | T24: - | U24: 0 | V24: 0 | W24: 0 | X24: 0 | Y24: 0 | Z24: 0 | AA24: 0 | AB24: 0 | AC24: 1 | AD24: 0.5 | AE24: 0 | AF24: 0 | AG24: 0 | AH24: 0 | AI24: 0 | AJ24: 0 | AK24: 0 | AL24: 0 | AM24: 0 | AN24: 0 | AO24: 0 | AP24: 0 | AS24: =IF(Tabulka3[[#This Row],[Region původu]]="V4", 1.25, IF(Tabulka3[[#This Row],[Region původu]]="Německé", 1.1, IF(Tabulka3[[#This Row],[Region původu]]="Balkán", 0.9, IF(Tabulka3[[#This Row],[Region původu]]="Sever", 0.9, 1)))) -> 1.25 | AT24: =Tabulka3[[#This Row],[Úspěšnost]]*AS24 -> 5 | AU24: =Tabulka3[[#This Row],[Reálná cena]]/Tabulka3[[#This Row],[Předpokládaná cena]] -> 1 | AV24: 0 | AW24: 0 | AX24: 0 | AY24: 0 | AZ24: 0 | BA24: 0 | BB24: 0 | BC24: 0 | BD24: 1.25 | BE24: 0.625 | BF24: 0 | BG24: 0 | BH24: 0 | BI24: 0 | BJ24: 0 | BK24: 0 | BL24: 0 | BM24: 0 | BN24: 0 | BO24: 0 | BP24: 0 | BQ24: 0
B25: 23 | C25: [D15,D16] | D25: Dálnice N17/18 Gort - Tuam | E25: Doprava | F25: Silniční infrastruktura | G25: DBFO | H25: Strabag (A) | I25: Irsko | J25: Západ | K25: 2014 | L25: 2017 | M25: Velmi velký | N25: 23500000000 | O25: 23500000000 | P25: 2 | Q25: Příp - pozemky | R25: Příprava | S25: - | T25: - | U25: 0.5 | V25: 0 | W25: 0 | X25: 0 | Y25: 0 | Z25: 0 | AA25: 0 | AB25: 0 | AC25: 0 | AD25: 0 | AE25: 0 | AF25: 0 | AG25: 0 | AH25: 0 | AI25: 0 | AJ25: 0 | AK25: 0 | AL25: 0 | AM25: 0 | AN25: 1 | AO25: 0.5 | AP25: 0 | AS25: =IF(Tabulka3[[#This Row],[Region původu]]="V4", 1.25, IF(Tabulka3[[#This Row],[Region původu]]="Německé", 1.1, IF(Tabulka3[[#This Row],[Region původu]]="Balkán", 0.9, IF(Tabulka3[[#This Row],[Region původu]]="Sever", 0.9, 1)))) -> 1 | AT25: =Tabulka3[[#This Row],[Úspěšnost]]*AS25 -> 2 | AU25: =Tabulka3[[#This Row],[Reálná cena]]/Tabulka3[[#This Row],[Předpokládaná cena]] -> 1 | AV25: 0.5 | AW25: 0 | AX25: 0 | AY25: 0 | AZ25: 0 | BA25: 0 | BB25: 0 | BC25: 0 | BD25: 0 | BE25: 0 | BF25: 0 | BG25: 0 | BH25: 0 | BI25: 0 | BJ25: 0 | BK25: 0 | BL25: 0 | BM25: 0 | BN25: 0 | BO25: 1 | BP25: 0.5 | BQ25: 0
B26: 24 | C26: [D17] | D26: Tunel Limerick | E26: Doprava | F26: Silniční infrastruktura | G26: DBFO | H26: Strabag (A) | I26: Irsko | J26: Západ | K26: 2006 | L26: 2010 | M26: Velký | N26: 16000000000 | O26: 16000000000 | P26: 1 | Q26: - | R26: - | S26: - | T26: - | U26: 0 | V26: 0 | W26: 0 | X26: 0 | Y26: 0 | Z26: 0 | AA26: 0 | AB26: 0 | AC26: 0 | AD26: 0 | AE26: 0 | AF26: 0 | AG26: 0 | AH26: 0 | AI26: 0 | AJ26: 0 | AK26: 0 | AL26: 0 | AM26: 0 | AN26: 0 | AO26: 0 | AP26: 0 | AS26: =IF(Tabulka3[[#This Row],[Region původu]]="V4", 1.25, IF(Tabulka3[[#This Row],[Region původu]]="Německé", 1.1, IF(Tabulka3[[#This Row],[Region původu]]="Balkán", 0.9, IF(Tabulka3[[#This Row],[Region původu]]="Sever", 0.9, 1)))) -> 1 | AT26: =Tabulka3[[#This Row],[Úspěšnost]]*AS26 -> 1 | AU26: =Tabulka3[[#This Row],[Reálná cena]]/Tabulka3[[#This Row],[Předpokládaná cena]] -> 1 | AV26: 0 | AW26: 0 | AX26: 0 | AY26: 0 | AZ26: 0 | BA26: 0 | BB26: 0 | BC26: 0 | BD26: 0 | BE26: 0 | BF26: 0 | BG26: 0 | BH26: 0 | BI26: 0 | BJ26: 0 | BK26: 0 | BL26: 0 | BM26: 0 | BN26: 0 | BO26: 0 | BP26: 0 | BQ26: 0
B27: 25 | C27: [D18] | D27: Rozšíření silnice M50 | E27: Doprava | F27: Silniční infrastruktura | G27: DBFO | H27: Globalvia Inversiones (E) | I27: Irsko | J27: Západ | K27: 2007 | L27: 2015 | M27: Velmi velký | N27: 23500000000 | O27: 23500000000 | P27: 1 | Q27: - | R27: - | S27: - | T27: - | U27: 0 | V27: 0 | W27: 0 | X27: 0 | Y27: 0 | Z27: 0 | AA27: 0 | AB27: 0 | AC27: 0 | AD27: 0 | AE27: 0 | AF27: 0 | AG27: 0 | AH27: 0 | AI27: 0 | AJ27: 0 | AK27: 0 | AL27: 0 | AM27: 0 | AN27: 0 | AO27: 0 | AP27: 0 | AS27: =IF(Tabulka3[[#This Row],[Region původu]]="V4", 1.25, IF(Tabulka3[[#This Row],[Region původu]]="Německé", 1.1, IF(Tabulka3[[#This Row],[Region původu]]="Balkán", 0.9, IF(Tabulka3[[#This Row],[Region původu]]="Sever", 0.9, 1)))) -> 1 | AT27: =Tabulka3[[#This Row],[Úspěšnost]]*AS27 -> 1 | AU27: =Tabulka3[[#This Row],[Reálná cena]]/Tabulka3[[#This Row],[Předpokládaná cena]] -> 1 | AV27: 0 | AW27: 0 | AX27: 0 | AY27: 0 | AZ27: 0 | BA27: 0 | BB27: 0 | BC27: 0 | BD27: 0 | BE27: 0 | BF27: 0 | BG27: 0 | BH27: 0 | BI27: 0 | BJ27: 0 | BK27: 0 | BL27: 0 | BM27: 0 | BN27: 0 | BO27: 0 | BP27: 0 | BQ27: 0
B28: 26 | C28: [D19,D20] | D28: Sociální bydlení Dublin | E28: Obecní služba | F28: Ubytování | G28: DBFO | H28: Macquarie Capital (AUS) | I28: Irsko | J28: Západ | K28: 2019 | L28: 2021 | M28: Velký | N28: 7500000000 | O28: 7500000000 | P28: 2 | Q28: Příp - smlouva | R28: Příprava | S28: - | T28: - | U28: 0 | V28: 0 | W28: 0 | X28: 0 | Y28: 0 | Z28: 0 | AA28: 0 | AB28: 0 | AC28: 0 | AD28: 0 | AE28: 0 | AF28: 0 | AG28: 0 | AH28: 0 | AI28: 0 | AJ28: 1 | AK28: 0 | AL28: 0 | AM28: 0 | AN28: 0 | AO28: 0 | AP28: 0 | AS28: =IF(Tabulka3[[#This Row],[Region původu]]="V4", 1.25, IF(Tabulka3[[#This Row],[Region původu]]="Německé", 1.1, IF(Tabulka3[[#This Row],[Region původu]]="Balkán", 0.9, IF(Tabulka3[[#This Row],[Region původu]]="Sever", 0.9, 1)))) -> 1 | AT28: =Tabulka3[[#This Row],[Úspěšnost]]*AS28 -> 2 | AU28: =Tabulka3[[#This Row],[Reálná cena]]/Tabulka3[[#This Row],[Předpokládaná cena]] -> 1 | AV28: 0 | AW28: 0 | AX28: 0 | AY28: 0 | AZ28: 0 | BA28: 0 | BB28: 0 | BC28: 0 | BD28: 0 | BE28: 0 | BF28: 0 | BG28: 0 | BH28: 0 | BI28: 0 | BJ28: 0 | BK28: 1 | BL28: 0 | BM28: 0 | BN28: 0 | BO28: 0 | BP28: 0 | BQ28: 0
B29: 27 | C29: [D21] | D29: Námořní vysoká škola v Dublinu | E29: Obecní služba | F29: Školství | G29: DBFO | H29: Bovis Lend Lease (GB) | I29: Irsko | J29: Západ | K29: 2001 | L29: 2004 | M29: Střední | N29: 4700000000 | O29: 4700000000 | P29: 1 | Q29: - | R29: - | S29: - | T29: - | U29: 0 | V29: 0 | W29: 0 | X29: 0 | Y29: 0 | Z29: 0 | AA29: 0 | AB29: 0 | AC29: 0 | AD29: 0 | AE29: 0 | AF29: 0 | AG29: 0 | AH29: 0 | AI29: 0 | AJ29: 0 | AK29: 0 | AL29: 0 | AM29: 0 | AN29: 0 | AO29: 0 | AP29: 0 | AS29: =IF(Tabulka3[[#This Row],[Region původu]]="V4", 1.25, IF(Tabulka3[[#This Row],[Region původu]]="Německé", 1.1, IF(Tabulka3[[#This Row],[Region původu]]="Balkán", 0.9, IF(Tabulka3[[#This Row],[Region původu]]="Sever", 0.9, 1)))) -> 1 | AT29: =Tabulka3[[#This Row],[Úspěšnost]]*AS29 -> 1 | AU29: =Tabulka3[[#This Row],[Reálná cena]]/Tabulka3[[#This Row],[Předpokládaná cena]] -> 1 | AV29: 0 | AW29: 0 | AX29: 0 | AY29: 0 | AZ29: 0 | BA29: 0 | BB29: 0 | BC29: 0 | BD29: 0 | BE29: 0 | BF29: 0 | BG29: 0 | BH29: 0 | BI29: 0 | BJ29: 0 | BK29: 0 | BL29: 0 | BM29: 0 | BN29: 0 | BO29: 0 | BP29: 0 | BQ29: 0
B30: 28 | C30: [35] | D30: Královská nemocnice Calderdale | E30: Obecní služba | F30: Zdravotnictví | G30: DBFO | H30: Bovis Lend Lease (GB) | I30: Velká Británie | J30: Západ | K30: 1998 | L30: 2001 | M30: Velký | N30: 8600000000 | O30: 21300000000 | P30: 3 | Q30: Příp - smlouva | R30: Příprava | S30: - | T30: - | U30: 0 | V30: 0 | W30: 0 | X30: 1 | Y30: 0 | Z30: 0 | AA30: 0 | AB30: 0.5 | AC30: 0 | AD30: 0 | AE30: 0 | AF30: 0 | AG30: 0 | AH30: 0 | AI30: 0 | AJ30: 1 | AK30: 0.5 | AL30: 0 | AM30: 0 | AN30: 0 | AO30: 0 | AP30: 0 | AS30: =IF(Tabulka3[[#This Row],[Region původu]]="V4", 1.25, IF(Tabulka3[[#This Row],[Region původu]]="Německé", 1.1, IF(Tabulka3[[#This Row],[Region původu]]="Balkán", 0.9, IF(Tabulka3[[#This Row],[Region původu]]="Sever", 0.9, 1)))) -> 1 | AT30: =Tabulka3[[#This Row],[Úspěšnost]]*AS30 -> 3 | AU30: =Tabulka3[[#This Row],[Reálná cena]]/Tabulka3[[#This Row],[Předpokládaná cena]] -> 2.476744186 | AV30: 0 | AW30: 0 | AX30: 0 | AY30: 1 | AZ30: 0 | BA30: 0 | BB30: 0 | BC30: 0.5 | BD30: 0 | BE30: 0 | BF30: 0 | BG30: 0 | BH30: 0 | BI30: 0 | BJ30: 0 | BK30: 1 | BL30: 0.5 | BM30: 0 | BN30: 0 | BO30: 0 | BP30: 0 | BQ30: 0
B31: 29 | C31: [D22,D23] | D31: Nemocnice Barts and the Royal London | E31: Obecní služba | F31: Zdravotnictví | G31: DBFO | H31: Skanska (S) | I31: Velká Británie | J31: Západ | K31: 2006 | L31: 2014 | M31: Velmi velký | N31: 41000000000 | O31: 43000000000 | P31: 2 | Q31: Kons - náklady | R31: Realizace | S31: - | T31: - | U31: 0 | V31: 0 | W31: 0 | X31: 0.5 | Y31: 0 | Z31: 0 | AA31: 0 | AB31: 0 | AC31: 0 | AD31: 0 | AE31: 0 | AF31: 0 | AG31: 0 | AH31: 0 | AI31: 0 | AJ31: 0 | AK31: 0 | AL31: 0 | AM31: 0 | AN31: 0 | AO31: 0.5 | AP31: 0 | AS31: =IF(Tabulka3[[#This Row],[Region původu]]="V4", 1.25, IF(Tabulka3[[#This Row],[Region původu]]="Německé", 1.1, IF(Tabulka3[[#This Row],[Region původu]]="Balkán", 0.9, IF(Tabulka3[[#This Row],[Region původu]]="Sever", 0.9, 1)))) -> 1 | AT31: =Tabulka3[[#This Row],[Úspěšnost]]*AS31 -> 2 | AU31: =Tabulka3[[#This Row],[Reálná cena]]/Tabulka3[[#This Row],[Předpokládaná cena]] -> 1.048780488 | AV31: 0 | AW31: 0 | AX31: 0 | AY31: 0.5 | AZ31: 0 | BA31: 0 | BB31: 0 | BC31: 0 | BD31: 0 | BE31: 0 | BF31: 0 | BG31: 0 | BH31: 0 | BI31: 0 | BJ31: 0 | BK31: 0 | BL31: 0 | BM31: 0 | BN31: 0 | BO31: 0 | BP31: 0.5 | BQ31: 0
B32: 30 | C32: [D24,D25] | D32: Školy v East Dunbartonshire | E32: Obecní služba | F32: Školství | G32: DBFO | H32: Semperian (GB) | I32: Velká Británie | J32: Západ | K32: 2007 | L32: 2009 | M32: Střední | N32: 4000000000 | O32: 4000000000 | P32: 2 | Q32: Kons - zdržení | R32: Realizace | S32: - | T32: - | U32: 0 | V32: 0 | W32: 0 | X32: 0 | Y32: 1 | Z32: 0 | AA32: 0 | AB32: 0 | AC32: 0 | AD32: 0 | AE32: 0 | AF32: 0 | AG32: 0 | AH32: 0 | AI32: 0 | AJ32: 0.5 | AK32: 0.5 | AL32: 0 | AM32: 0 | AN32: 0 | AO32: 0 | AP32: 0 | AS32: =IF(Tabulka3[[#This Row],[Region původu]]="V4", 1.25, IF(Tabulka3[[#This Row],[Region původu]]="Německé", 1.1, IF(Tabulka3[[#This Row],[Region původu]]="Balkán", 0.9, IF(Tabulka3[[#This Row],[Region původu]]="Sever", 0.9, 1)))) -> 1 | AT32: =Tabulka3[[#This Row],[Úspěšnost]]*AS32 -> 2 | AU32: =Tabulka3[[#This Row],[Reálná cena]]/Tabulka3[[#This Row],[Předpokládaná cena]] -> 1 | AV32: 0 | AW32: 0 | AX32: 0 | AY32: 0 | AZ32: 1 | BA32: 0 | BB32: 0 | BC32: 0 | BD32: 0 | BE32: 0 | BF32: 0 | BG32: 0 | BH32: 0 | BI32: 0 | BJ32: 0 | BK32: 0.5 | BL32: 0.5 | BM32: 0 | BN32: 0 | BO32: 0 | BP32: 0 | BQ32: 0
B33: 31 | C33: [D26] | D33: Dálnice A19 Dishforth - Tyne Tunnel | E33: Doprava | F33: Silniční infrastruktura | G33: DBFO | H33: Sir Robert McAlpine (GB) | I33: Velká Británie | J33: Západ | K33: 1996 | L33: 1998 | M33: Velmi velký | N33: 19800000000 | O33: 28100000000 | P33: 3 | Q33: Oper - údržba | R33: Provoz | S33: - | T33: - | U33: 0 | V33: 0 | W33: 0 | X33: 0 | Y33: 0 | Z33: 0 | AA33: 0 | AB33: 1 | AC33: 0 | AD33: 0 | AE33: 0 | AF33: 0 | AG33: 0 | AH33: 0 | AI33: 0 | AJ33: 0.5 | AK33: 0 | AL33: 0 | AM33: 0 | AN33: 0 | AO33: 0 | AP33: 0 | AS33: =IF(Tabulka3[[#This Row],[Region původu]]="V4", 1.25, IF(Tabulka3[[#This Row],[Region původu]]="Německé", 1.1, IF(Tabulka3[[#This Row],[Region původu]]="Balkán", 0.9, IF(Tabulka3[[#This Row],[Region původu]]="Sever", 0.9, 1)))) -> 1 | AT33: =Tabulka3[[#This Row],[Úspěšnost]]*AS33 -> 3 | AU33: =Tabulka3[[#This Row],[Reálná cena]]/Tabulka3[[#This Row],[Předpokládaná cena]] -> 1.419191919 | AV33: 0 | AW33: 0 | AX33: 0 | AY33: 0 | AZ33: 0 | BA33: 0 | BB33: 0 | BC33: 1 | BD33: 0 | BE33: 0 | BF33: 0 | BG33: 0 | BH33: 0 | BI33: 0 | BJ33: 0 | BK33: 0.5 | BL33: 0 | BM33: 0 | BN33: 0 | BO33: 0 | BP33: 0 | BQ33: 0
B34: 32 | C34: [D27] | D34: Komunikační satelity Skynet 5 | E34: Doprava | F34: Vesmírná infrastruktura | G34: DBFO | H34: Airbus (NL) | I34: Velká Británie | J34: Západ | K34: 2003 | L34: 2008 | M34: Velmi velký | N34: 107000000000 | O34: 107000000000 | P34: 1 | Q34: - | R34: - | S34: - | T34: - | U34: 0 | V34: 0 | W34: 0 | X34: 0 | Y34: 0 | Z34: 0 | AA34: 0 | AB34: 0 | AC34: 0 | AD34: 0 | AE34: 0 | AF34: 0 | AG34: 0 | AH34: 0 | AI34: 0 | AJ34: 0 | AK34: 0 | AL34: 0 | AM34: 0 | AN34: 0 | AO34: 0 | AP34: 0 | AS34: =IF(Tabulka3[[#This Row],[Region původu]]="V4", 1.25, IF(Tabulka3[[#This Row],[Region původu]]="Německé", 1.1, IF(Tabulka3[[#This Row],[Region původu]]="Balkán", 0.9, IF(Tabulka3[[#This Row],[Region původu]]="Sever", 0.9, 1)))) -> 1 | AT34: =Tabulka3[[#This Row],[Úspěšnost]]*AS34 -> 1 | AU34: =Tabulka3[[#This Row],[Reálná cena]]/Tabulka3[[#This Row],[Předpokládaná cena]] -> 1 | AV34: 0 | AW34: 0 | AX34: 0 | AY34: 0 | AZ34: 0 | BA34: 0 | BB34: 0 | BC34: 0 | BD34: 0 | BE34: 0 | BF34: 0 | BG34: 0 | BH34: 0 | BI34: 0 | BJ34: 0 | BK34: 0 | BL34: 0 | BM34: 0 | BN34: 0 | BO34: 0 | BP34: 0 | BQ34: 0
B35: 33 | C35: [D28,D29,D30] | D35: Vys. rychl. železnice Nîmes - Montpellier | E35: Doprava | F35: Železniční infrastruktura | G35: DBFO | H35: Bouygues (FR) | I35: Francie | J35: Západ | K35: 2012 | L35: 2017 | M35: Velmi velký | N35: 45000000000 | O35: 45000000000 | P35: 1 | Q35: - | R35: - | S35: - | T35: - | U35: 0 | V35: 0 | W35: 0 | X35: 0 | Y35: 0 | Z35: 0 | AA35: 0 | AB35: 0 | AC35: 0 | AD35: 0 | AE35: 0 | AF35: 0 | AG35: 0 | AH35: 0 | AI35: 0 | AJ35: 0 | AK35: 0 | AL35: 0 | AM35: 0 | AN35: 0 | AO35: 0 | AP35: 0 | AS35: =IF(Tabulka3[[#This Row],[Region původu]]="V4", 1.25, IF(Tabulka3[[#This Row],[Region původu]]="Německé", 1.1, IF(Tabulka3[[#This Row],[Region původu]]="Balkán", 0.9, IF(Tabulka3[[#This Row],[Region původu]]="Sever", 0.9, 1)))) -> 1 | AT35: =Tabulka3[[#This Row],[Úspěšnost]]*AS35 -> 1 | AU35: =Tabulka3[[#This Row],[Reálná cena]]/Tabulka3[[#This Row],[Předpokládaná cena]] -> 1 | AV35: 0 | AW35: 0 | AX35: 0 | AY35: 0 | AZ35: 0 | BA35: 0 | BB35: 0 | BC35: 0 | BD35: 0 | BE35: 0 | BF35: 0 | BG35: 0 | BH35: 0 | BI35: 0 | BJ35: 0 | BK35: 0 | BL35: 0 | BM35: 0 | BN35: 0 | BO35: 0 | BP35: 0 | BQ35: 0
B36: 34 | C36: [D30,D31,D32,D33] | D36: Dálnice L2 - Obchvat Marseille | E36: Doprava | F36: Silniční infrastruktura | G36: DBFO | H36: Bouygues (FR) | I36: Francie | J36: Západ | K36: 2013 | L36: 2018 | M36: Velký | N36: 15400000000 | O36: 15400000000 | P36: 2 | Q36: Kons - zdržení | R36: Realizace | S36: - | T36: - | U36: 0 | V36: 0 | W36: 0 | X36: 0 | Y36: 1 | Z36: 1 | AA36: 0 | AB36: 0.5 | AC36: 0 | AD36: 0 | AE36: 0 | AF36: 0 | AG36: 0 | AH36: 0 | AI36: 0 | AJ36: 1 | AK36: 0 | AL36: 0 | AM36: 0 | AN36: 0 | AO36: 0 | AP36: 0 | AS36: =IF(Tabulka3[[#This Row],[Region původu]]="V4", 1.25, IF(Tabulka3[[#This Row],[Region původu]]="Německé", 1.1, IF(Tabulka3[[#This Row],[Region původu]]="Balkán", 0.9, IF(Tabulka3[[#This Row],[Region původu]]="Sever", 0.9, 1)))) -> 1 | AT36: =Tabulka3[[#This Row],[Úspěšnost]]*AS36 -> 2 | AU36: =Tabulka3[[#This Row],[Reálná cena]]/Tabulka3[[#This Row],[Předpokládaná cena]] -> 1 | AV36: 0 | AW36: 0 | AX36: 0 | AY36: 0 | AZ36: 1 | BA36: 1 | BB36: 0 | BC36: 0.5 | BD36: 0 | BE36: 0 | BF36: 0 | BG36: 0 | BH36: 0 | BI36: 0 | BJ36: 0 | BK36: 1 | BL36: 0 | BM36: 0 | BN36: 0 | BO36: 0 | BP36: 0 | BQ36: 0
B37: 35 | C37: [D34] | D37: Rekonstr. dálnice A12 Utrecht - Veenendaal | E37: Doprava | F37: Silniční infrastruktura | G37: DBFO | H37: BAM PPP (NL) | I37: Nizozemí | J37: Západ | K37: 2010 | L37: 2011 | M37: Velký | N37: 9300000000 | O37: 9300000000 | P37: 1 | Q37: - | R37: - | S37: - | T37: - | U37: 0 | V37: 0 | W37: 0 | X37: 0 | Y37: 0 | Z37: 0 | AA37: 0 | AB37: 0 | AC37: 0 | AD37: 0 | AE37: 0 | AF37: 0 | AG37: 0 | AH37: 0 | AI37: 0 | AJ37: 0 | AK37: 0 | AL37: 0 | AM37: 0 | AN37: 0 | AO37: 0 | AP37: 0 | AS37: =IF(Tabulka3[[#This Row],[Region původu]]="V4", 1.25, IF(Tabulka3[[#This Row],[Region původu]]="Německé", 1.1, IF(Tabulka3[[#This Row],[Region původu]]="Balkán", 0.9, IF(Tabulka3[[#This Row],[Region původu]]="Sever", 0.9, 1)))) -> 1 | AT37: =Tabulka3[[#This Row],[Úspěšnost]]*AS37 -> 1 | AU37: =Tabulka3[[#This Row],[Reálná cena]]/Tabulka3[[#This Row],[Předpokládaná cena]] -> 1 | AV37: 0 | AW37: 0 | AX37: 0 | AY37: 0 | AZ37: 0 | BA37: 0 | BB37: 0 | BC37: 0 | BD37: 0 | BE37: 0 | BF37: 0 | BG37: 0 | BH37: 0 | BI37: 0 | BJ37: 0 | BK37: 0 | BL37: 0 | BM37: 0 | BN37: 0 | BO37: 0 | BP37: 0 | BQ37: 0
B38: 36 | C38: [D35] | D38: Tramvajové depo Antverpy | E38: Doprava | F38: Hromadná doprava | G38: DBFO | H38: Heijmans (NL) | I38: Belgie | J38: Západ | K38: 2011 | L38: 2012 | M38: Střední | N38: 3100000000 | O38: 3100000000 | P38: 1 | Q38: - | R38: - | S38: - | T38: - | U38: 0 | V38: 0 | W38: 0 | X38: 0 | Y38: 0 | Z38: 0 | AA38: 0 | AB38: 0 | AC38: 0 | AD38: 0 | AE38: 0 | AF38: 0 | AG38: 0 | AH38: 0 | AI38: 0 | AJ38: 0 | AK38: 0 | AL38: 0 | AM38: 0 | AN38: 0 | AO38: 0 | AP38: 0 | AS38: =IF(Tabulka3[[#This Row],[Region původu]]="V4", 1.25, IF(Tabulka3[[#This Row],[Region původu]]="Německé", 1.1, IF(Tabulka3[[#This Row],[Region původu]]="Balkán", 0.9, IF(Tabulka3[[#This Row],[Region původu]]="Sever", 0.9, 1)))) -> 1 | AT38: =Tabulka3[[#This Row],[Úspěšnost]]*AS38 -> 1 | AU38: =Tabulka3[[#This Row],[Reálná cena]]/Tabulka3[[#This Row],[Předpokládaná cena]] -> 1 | AV38: 0 | AW38: 0 | AX38: 0 | AY38: 0 | AZ38: 0 | BA38: 0 | BB38: 0 | BC38: 0 | BD38: 0 | BE38: 0 | BF38: 0 | BG38: 0 | BH38: 0 | BI38: 0 | BJ38: 0 | BK38: 0 | BL38: 0 | BM38: 0 | BN38: 0 | BO38: 0 | BP38: 0 | BQ38: 0
B39: 37 | C39: [D15,D36,D37] | D39: Dálnice A1 Burgos - Armiñón | E39: Doprava | F39: Silniční infrastruktura | G39: DBFO | H39: Europistas Concesionaria Española (E) | I39: Španělsko | J39: Jih | K39: 2010 | L39: 2012 | M39: Velký | N39: 11800000000 | O39: 15800000000 | P39: 3 | Q39: Příjm - poptávka | R39: Provoz | S39: - | T39: - | U39: 0 | V39: 0.5 | W39: 0 | X39: 1 | Y39: 1 | Z39: 0 | AA39: 0 | AB39: 0 | AC39: 0.5 | AD39: 1 | AE39: 0 | AF39: 0 | AG39: 0.5 | AH39: 0 | AI39: 0 | AJ39: 0.5 | AK39: 0 | AL39: 0 | AM39: 0 | AN39: 0 | AO39: 0 | AP39: 0 | AS39: =IF(Tabulka3[[#This Row],[Region původu]]="V4", 1.25, IF(Tabulka3[[#This Row],[Region původu]]="Německé", 1.1, IF(Tabulka3[[#This Row],[Region původu]]="Balkán", 0.9, IF(Tabulka3[[#This Row],[Region původu]]="Sever", 0.9, 1)))) -> 1 | AT39: =Tabulka3[[#This Row],[Úspěšnost]]*AS39 -> 3 | AU39: =Tabulka3[[#This Row],[Reálná cena]]/Tabulka3[[#This Row],[Předpokládaná cena]] -> 1.338983051 | AV39: 0 | AW39: 0.5 | AX39: 0 | AY39: 1 | AZ39: 1 | BA39: 0 | BB39: 0 | BC39: 0 | BD39: 0.5 | BE39: 1 | BF39: 0 | BG39: 0 | BH39: 0.5 | BI39: 0 | BJ39: 0 | BK39: 0.5 | BL39: 0 | BM39: 0 | BN39: 0 | BO39: 0 | BP39: 0 | BQ39: 0
B40: 38 | C40: [D15,D38] | D40: Rekonstrukce dálnice C25 v Katalánsku | E40: Doprava | F40: Silniční infrastruktura | G40: DBFO | H40: N/A | I40: Španělsko | J40: Jih | K40: 2010 | L40: 2013 | M40: Velký | N40: 17300000000 | O40: 20700000000 | P40: 3 | Q40: Fin - makroekon | R40: Provoz | S40: - | T40: - | U40: 0 | V40: 1 | W40: 0 | X40: 1 | Y40: 1 | Z40: 0 | AA40: 0 | AB40: 0 | AC40: 0 | AD40: 0 | AE40: 0 | AF40: 0 | AG40: 0.5 | AH40: 0 | AI40: 0 | AJ40: 0.5 | AK40: 0 | AL40: 0 | AM40: 0 | AN40: 0 | AO40: 0 | AP40: 0 | AS40: =IF(Tabulka3[[#This Row],[Region původu]]="V4", 1.25, IF(Tabulka3[[#This Row],[Region původu]]="Německé", 1.1, IF(Tabulka3[[#This Row],[Region původu]]="Balkán", 0.9, IF(Tabulka3[[#This Row],[Region původu]]="Sever", 0.9, 1)))) -> 1 | AT40: =Tabulka3[[#This Row],[Úspěšnost]]*AS40 -> 3 | AU40: =Tabulka3[[#This Row],[Reálná cena]]/Tabulka3[[#This Row],[Předpokládaná cena]] -> 1.196531792 | AV40: 0 | AW40: 1 | AX40: 0 | AY40: 1 | AZ40: 1 | BA40: 0 | BB40: 0 | BC40: 0 | BD40: 0 | BE40: 0 | BF40: 0 | BG40: 0 | BH40: 0.5 | BI40: 0 | BJ40: 0 | BK40: 0.5 | BL40: 0 | BM40: 0 | BN40: 0 | BO40: 0 | BP40: 0 | BQ40: 0
B41: 39 | C41: [D39,D40] | D41: Dálnice "Pedemontana Veneta" na Benátsku | E41: Doprava | F41: Silniční infrastruktura | G41: DBFO | H41: Finninc (I) | I41: Itálie | J41: Jih | K41: 2011 | L41: Ve výstavbě | M41: Velmi velký | N41: 69000000000 | O41: 69000000000 | P41: 3 | Q41: Příp - povolení | R41: Příprava | S41: - | T41: - | U41: 0 | V41: 0 | W41: 0 | X41: 0 | Y41: 0 | Z41: 0 | AA41: 0 | AB41: 0 | AC41: 0 | AD41: 0 | AE41: 0 | AF41: 0.5 | AG41: 0 | AH41: 0 | AI41: 0 | AJ41: 0 | AK41: 0 | AL41: 0 | AM41: 1 | AN41: 0 | AO41: 1 | AP41: 0 | AS41: =IF(Tabulka3[[#This Row],[Region původu]]="V4", 1.25, IF(Tabulka3[[#This Row],[Region původu]]="Německé", 1.1, IF(Tabulka3[[#This Row],[Region původu]]="Balkán", 0.9, IF(Tabulka3[[#This Row],[Region původu]]="Sever", 0.9, 1)))) -> 1 | AT41: =Tabulka3[[#This Row],[Úspěšnost]]*AS41 -> 3 | AU41: =Tabulka3[[#This Row],[Reálná cena]]/Tabulka3[[#This Row],[Předpokládaná cena]] -> 1 | AV41: 0 | AW41: 0 | AX41: 0 | AY41: 0 | AZ41: 0 | BA41: 0 | BB41: 0 | BC41: 0 | BD41: 0 | BE41: 0 | BF41: 0 | BG41: 0.5 | BH41: 0 | BI41: 0 | BJ41: 0 | BK41: 0 | BL41: 0 | BM41: 0 | BN41: 1 | BO41: 0 | BP41: 1 | BQ41: 0
B42: 40 | C42: [D15,D41] | D42: Dálnice Moreas | E42: Doprava | F42: Silniční infrastruktura | G42: DBFO | H42: Ellaktor (GB) | I42: Řecko | J42: Jih | K42: 2008 | L42: 2016 | M42: Velmi velký | N42: 38500000000 | O42: 44723000000 | P42: 3 | Q42: Příjm - poptávka | R42: Příprava | S42: - | T42: - | U42: 0 | V42: 1 | W42: 0 | X42: 1 | Y42: 1 | Z42: 0 | AA42: 0 | AB42: 0 | AC42: 0.5 | AD42: 1 | AE42: 0 | AF42: 0.5 | AG42: 0.5 | AH42: 0 | AI42: 0 | AJ42: 0.5 | AK42: 0 | AL42: 0.5 | AM42: 0 | AN42: 0 | AO42: 0.5 | AP42: 0 | AS42: =IF(Tabulka3[[#This Row],[Region původu]]="V4", 1.25, IF(Tabulka3[[#This Row],[Region původu]]="Německé", 1.1, IF(Tabulka3[[#This Row],[Region původu]]="Balkán", 0.9, IF(Tabulka3[[#This Row],[Region původu]]="Sever", 0.9, 1)))) -> 1 | AT42: =Tabulka3[[#This Row],[Úspěšnost]]*AS42 -> 3 | AU42: =Tabulka3[[#This Row],[Reálná cena]]/Tabulka3[[#This Row],[Předpokládaná cena]] -> 1.161636364 | AV42: 0 | AW42: 1 | AX42: 0 | AY42: 1 | AZ42: 1 | BA42: 0 | BB42: 0 | BC42: 0 | BD42: 0.5 | BE42: 1 | BF42: 0 | BG42: 0.5 | BH42: 0.5 | BI42: 0 | BJ42: 0 | BK42: 0.5 | BL42: 0 | BM42: 0.5 | BN42: 0 | BO42: 0 | BP42: 0.5 | BQ42: 0
B43: 41 | C43: [D15,D42] | D43: Dálnice Olympia | E43: Doprava | F43: Silniční infrastruktura | G43: DBFO | H43: Vinci (F) | I43: Řecko | J43: Jih | K43: 2008 | L43: 2017 | M43: Velmi velký | N43: 70600000000 | O43: 79900000000 | P43: 3 | Q43: Příjm - poptávka | R43: Příprava | S43: - | T43: - | U43: 0 | V43: 1 | W43: 0 | X43: 1 | Y43: 1 | Z43: 0 | AA43: 0 | AB43: 0 | AC43: 0.5 | AD43: 1 | AE43: 0 | AF43: 0.5 | AG43: 0.5 | AH43: 0 | AI43: 0 | AJ43: 0.5 | AK43: 0 | AL43: 0.5 | AM43: 0 | AN43: 0 | AO43: 0.5 | AP43: 0 | AS43: =IF(Tabulka3[[#This Row],[Region původu]]="V4", 1.25, IF(Tabulka3[[#This Row],[Region původu]]="Německé", 1.1, IF(Tabulka3[[#This Row],[Region původu]]="Balkán", 0.9, IF(Tabulka3[[#This Row],[Region původu]]="Sever", 0.9, 1)))) -> 1 | AT43: =Tabulka3[[#This Row],[Úspěšnost]]*AS43 -> 3 | AU43: =Tabulka3[[#This Row],[Reálná cena]]/Tabulka3[[#This Row],[Předpokládaná cena]] -> 1.131728045 | AV43: 0 | AW43: 1 | AX43: 0 | AY43: 1 | AZ43: 1 | BA43: 0 | BB43: 0 | BC43: 0 | BD43: 0.5 | BE43: 1 | BF43: 0 | BG43: 0.5 | BH43: 0.5 | BI43: 0 | BJ43: 0 | BK43: 0.5 | BL43: 0 | BM43: 0.5 | BN43: 0 | BO43: 0 | BP43: 0.5 | BQ43: 0
B44: 42 | C44: [D43] | D44: Nové hasičské stanice | E44: Obecní služba | F44: Bezpečnost | G44: DBFO | H44: Ellaktor (GB) | I44: Řecko | J44: Jih | K44: 2007 | L44: 2013 | M44: Střední | N44: 650000000 | O44: 650000000 | P44: 2 | Q44: Kons - zdržení | R44: Realizace | S44: - | T44: - | U44: 0 | V44: 0 | W44: 0 | X44: 0 | Y44: 1 | Z44: 0 | AA44: 0 | AB44: 0 | AC44: 0 | AD44: 0 | AE44: 0 | AF44: 0 | AG44: 0 | AH44: 0 | AI44: 0 | AJ44: 0 | AK44: 0 | AL44: 0 | AM44: 0 | AN44: 0 | AO44: 0 | AP44: 0 | AS44: =IF(Tabulka3[[#This Row],[Region původu]]="V4", 1.25, IF(Tabulka3[[#This Row],[Region původu]]="Německé", 1.1, IF(Tabulka3[[#This Row],[Region původu]]="Balkán", 0.9, IF(Tabulka3[[#This Row],[Region původu]]="Sever", 0.9, 1)))) -> 1 | AT44: =Tabulka3[[#This Row],[Úspěšnost]]*AS44 -> 2 | AU44: =Tabulka3[[#This Row],[Reálná cena]]/Tabulka3[[#This Row],[Předpokládaná cena]] -> 1 | AV44: 0 | AW44: 0 | AX44: 0 | AY44: 0 | AZ44: 1 | BA44: 0 | BB44: 0 | BC44: 0 | BD44: 0 | BE44: 0 | BF44: 0 | BG44: 0 | BH44: 0 | BI44: 0 | BJ44: 0 | BK44: 0 | BL44: 0 | BM44: 0 | BN44: 0 | BO44: 0 | BP44: 0 | BQ44: 0
B45: 43 | C45: [D44] | D45: Sportovní hala Varadín | E45: Obecní služba | F45: Sport | G45: DBFO | H45: T.P.N. DRAVA (HR) | I45: Chorvatsko | J45: Balkán | K45: 2007 | L45: 2008 | M45: Střední | N45: 590000000 | O45: 590000000 | P45: 1 | Q45: - | R45: - | S45: - | T45: - | U45: 0 | V45: 0 | W45: 0 | X45: 0 | Y45: 0 | Z45: 0 | AA45: 0 | AB45: 0 | AC45: 0 | AD45: 0 | AE45: 0 | AF45: 0 | AG45: 0 | AH45: 0 | AI45: 0 | AJ45: 0 | AK45: 0 | AL45: 0 | AM45: 0 | AN45: 0 | AO45: 0 | AP45: 0 | AS45: =IF(Tabulka3[[#This Row],[Region původu]]="V4", 1.25, IF(Tabulka3[[#This Row],[Region původu]]="Německé", 1.1, IF(Tabulka3[[#This Row],[Region původu]]="Balkán", 0.9, IF(Tabulka3[[#This Row],[Region původu]]="Sever", 0.9, 1)))) -> 0.9 | AT45: =Tabulka3[[#This Row],[Úspěšnost]]*AS45 -> 0.9 | AU45: =Tabulka3[[#This Row],[Reálná cena]]/Tabulka3[[#This Row],[Předpokládaná cena]] -> 1 | AV45: 0 | AW45: 0 | AX45: 0 | AY45: 0 | AZ45: 0 | BA45: 0 | BB45: 0 | BC45: 0 | BD45: 0 | BE45: 0 | BF45: 0 | BG45: 0 | BH45: 0 | BI45: 0 | BJ45: 0 | BK45: 0 | BL45: 0 | BM45: 0 | BN45: 0 | BO45: 0 | BP45: 0 | BQ45: 0
B46: 44 | C46: [D44,D45] | D46: Nový terminál letiště Záhřeb | E46: Doprava | F46: Letecká infrastruktura | G46: DBFO | H46: Bouygues (FR) | I46: Chorvatsko | J46: Balkán | K46: 2013 | L46: 2017 | M46: Velký | N46: 8300000000 | O46: 8300000000 | P46: 1 | Q46: - | R46: - | S46: - | T46: - | U46: 0 | V46: 0 | W46: 0 | X46: 0 | Y46: 0 | Z46: 0 | AA46: 0 | AB46: 0 | AC46: 0 | AD46: 0 | AE46: 0 | AF46: 0 | AG46: 0 | AH46: 0 | AI46: 0 | AJ46: 0 | AK46: 0 | AL46: 0 | AM46: 0 | AN46: 0 | AO46: 0 | AP46: 0 | AS46: =IF(Tabulka3[[#This Row],[Region původu]]="V4", 1.25, IF(Tabulka3[[#This Row],[Region původu]]="Německé", 1.1, IF(Tabulka3[[#This Row],[Region původu]]="Balkán", 0.9, IF(Tabulka3[[#This Row],[Region původu]]="Sever", 0.9, 1)))) -> 0.9 | AT46: =Tabulka3[[#This Row],[Úspěšnost]]*AS46 -> 0.9 | AU46: =Tabulka3[[#This Row],[Reálná cena]]/Tabulka3[[#This Row],[Předpokládaná cena]] -> 1 | AV46: 0 | AW46: 0 | AX46: 0 | AY46: 0 | AZ46: 0 | BA46: 0 | BB46: 0 | BC46: 0 | BD46: 0 | BE46: 0 | BF46: 0 | BG46: 0 | BH46: 0 | BI46: 0 | BJ46: 0 | BK46: 0 | BL46: 0 | BM46: 0 | BN46: 0 | BO46: 0 | BP46: 0 | BQ46: 0
B47: 45 | C47: [D46,D47] | D47: Fotbalový stadion Stožice | E47: Obecní služba | F47: Sport | G47: DBFO | H47: Grep (SLO) | I47: Slovinsko | J47: Balkán | K47: 2006 | L47: 2010 | M47: Střední | N47: 3300000000 | O47: 3300000000 | P47: 3 | Q47: Příjm - poptávka | R47: Příprava | S47: - | T47: - | U47: 0 | V47: 0 | W47: 0 | X47: 0 | Y47: 0 | Z47: 0 | AA47: 0 | AB47: 0 | AC47: 0.5 | AD47: 1 | AE47: 0 | AF47: 0 | AG47: 0 | AH47: 0 | AI47: 0 | AJ47: 0 | AK47: 0 | AL47: 0 | AM47: 0 | AN47: 0 | AO47: 0 | AP47: 0 | AS47: =IF(Tabulka3[[#This Row],[Region původu]]="V4", 1.25, IF(Tabulka3[[#This Row],[Region původu]]="Německé", 1.1, IF(Tabulka3[[#This Row],[Region původu]]="Balkán", 0.9, IF(Tabulka3[[#This Row],[Region původu]]="Sever", 0.9, 1)))) -> 0.9 | AT47: =Tabulka3[[#This Row],[Úspěšnost]]*AS47 -> 2.7 | AU47: =Tabulka3[[#This Row],[Reálná cena]]/Tabulka3[[#This Row],[Předpokládaná cena]] -> 1 | AV47: 0 | AW47: 0 | AX47: 0 | AY47: 0 | AZ47: 0 | BA47: 0 | BB47: 0 | BC47: 0 | BD47: 0.45 | BE47: 0.9 | BF47: 0 | BG47: 0 | BH47: 0 | BI47: 0 | BJ47: 0 | BK47: 0 | BL47: 0 | BM47: 0 | BN47: 0 | BO47: 0 | BP47: 0 | BQ47: 0
B48: 46 | C48: [D48,D49] | D48: Spalovna odpadů Bělehrad | E48: Obecní služba | F48: Odpadní hospodářství | G48: DBFO | H48: SUEZ (FR) | I48: Srbsko | J48: Balkán | K48: 2017 | L48: Ve výstavbě | M48: Velký | N48: 8100000000 | O48: 8100000000 | P48: 4 | Q48: Příp - pozemky | R48: Příprava | S48: - | T48: - | U48: 0 | V48: 0 | W48: 0 | X48: 0 | Y48: 0 | Z48: 0 | AA48: 0 | AB48: 0 | AC48: 0 | AD48: 1 | AE48: 0 | AF48: 0.5 | AG48: 0 | AH48: 0 | AI48: 0 | AJ48: 0 | AK48: 0 | AL48: 1 | AM48: 0 | AN48: 1 | AO48: 1 | AP48: 0 | AS48: =IF(Tabulka3[[#This Row],[Region původu]]="V4", 1.25, IF(Tabulka3[[#This Row],[Region původu]]="Německé", 1.1, IF(Tabulka3[[#This Row],[Region původu]]="Balkán", 0.9, IF(Tabulka3[[#This Row],[Region původu]]="Sever", 0.9, 1)))) -> 0.9 | AT48: =Tabulka3[[#This Row],[Úspěšnost]]*AS48 -> 3.6 | AU48: =Tabulka3[[#This Row],[Reálná cena]]/Tabulka3[[#This Row],[Předpokládaná cena]] -> 1 | AV48: 0 | AW48: 0 | AX48: 0 | AY48: 0 | AZ48: 0 | BA48: 0 | BB48: 0 | BC48: 0 | BD48: 0 | BE48: 0.9 | BF48: 0 | BG48: 0.45 | BH48: 0 | BI48: 0 | BJ48: 0 | BK48: 0 | BL48: 0 | BM48: 0.9 | BN48: 0 | BO48: 0.9 | BP48: 0.9 | BQ48: 0
B49: 47 | C49: [D51,D52] | D49: Dálnice M1/M15 Gyor - Bratislava - Rakousko | E49: Doprava | F49: Silniční infrastruktura | G49: DBFO | H49: N/A | I49: Maďarsko | J49: V4 | K49: 1993 | L49: 1998 | M49: Velký | N49: 7000000000 | O49: 7000000000 | P49: 4 | Q49: Fin - financování | R49: Příprava | S49: - | T49: - | U49: 1 | V49: 0 | W49: 0 | X49: 0 | Y49: 0 | Z49: 0 | AA49: 0 | AB49: 0.5 | AC49: 1 | AD49: 1 | AE49: 0 | AF49: 1 | AG49: 0 | AH49: 0 | AI49: 0 | AJ49: 0 | AK49: 1 | AL49: 0 | AM49: 0 | AN49: 0 | AO49: 0 | AP49: 0 | AS49: =IF(Tabulka3[[#This Row],[Region původu]]="V4", 1.25, IF(Tabulka3[[#This Row],[Region původu]]="Německé", 1.1, IF(Tabulka3[[#This Row],[Region původu]]="Balkán", 0.9, IF(Tabulka3[[#This Row],[Region původu]]="Sever", 0.9, 1)))) -> 1.25 | AT49: =Tabulka3[[#This Row],[Úspěšnost]]*AS49 -> 5 | AU49: =Tabulka3[[#This Row],[Reálná cena]]/Tabulka3[[#This Row],[Předpokládaná cena]] -> 1 | AV49: 1.25 | AW49: 0 | AX49: 0 | AY49: 0 | AZ49: 0 | BA49: 0 | BB49: 0 | BC49: 0.625 | BD49: 1.25 | BE49: 1.25 | BF49: 0 | BG49: 1.25 | BH49: 0 | BI49: 0 | BJ49: 0 | BK49: 0 | BL49: 1.25 | BM49: 0 | BN49: 0 | BO49: 0 | BP49: 0 | BQ49: 0
B50: 48 | C50: [D53,D54] | D50: Dálnice M6 Budapest - Dunaujvarös | E50: Doprava | F50: Silniční infrastruktura | G50: DBFO | H50: Aberdeen Asset Management (GB) | I50: Maďarsko | J50: V4 | K50: 2006 | L50: 2010 | M50: Velký | N50: 13000000000 | O50: 13000000000 | P50: 3 | Q50: Příjm - poptávka | R50: Příprava | U50: 0 | V50: 0 | W50: 0 | X50: 1 | Y50: 0 | Z50: 0 | AA50: 0 | AB50: 0 | AC50: 0.5 | AD50: 1 | AE50: 1 | AF50: 0 | AG50: 0 | AH50: 0 | AI50: 0 | AJ50: 0.5 | AK50: 0 | AL50: 0 | AM50: 0 | AN50: 0 | AO50: 0 | AP50: 0 | AS50: =IF(Tabulka3[[#This Row],[Region původu]]="V4", 1.25, IF(Tabulka3[[#This Row],[Region původu]]="Německé", 1.1, IF(Tabulka3[[#This Row],[Region původu]]="Balkán", 0.9, IF(Tabulka3[[#This Row],[Region původu]]="Sever", 0.9, 1)))) -> 1.25 | AT50: =Tabulka3[[#This Row],[Úspěšnost]]*AS50 -> 3.75 | AU50: =Tabulka3[[#This Row],[Reálná cena]]/Tabulka3[[#This Row],[Předpokládaná cena]] -> 1 | AV50: 0 | AW50: 0 | AX50: 0 | AY50: 1.25 | AZ50: 0 | BA50: 0 | BB50: 0 | BC50: 0 | BD50: 0.625 | BE50: 1.25 | BF50: 1.25 | BG50: 0 | BH50: 0 | BI50: 0 | BJ50: 0 | BK50: 0.625 | BL50: 0 | BM50: 0 | BN50: 0 | BO50: 0 | BP50: 0 | BQ50: 0
B51: 49 | C51: [D55,D56] | D51: Palác kultury Budapešť | E51: Obecní služba | F51: Kultura | G51: DBFO | H51: TriGránit (H) | I51: Maďarsko | J51: V4 | K51: 2000 | L51: 2003 | M51: Velký | N51: 4350000000 | O51: 20600000000 | P51: 4 | Q51: Příp - smlouva | R51: Příprava | S51: - | T51: - | U51: 0 | V51: 0 | W51: 0 | X51: 1 | Y51: 1 | Z51: 0.5 | AA51: 0 | AB51: 0 | AC51: 0 | AD51: 0 | AE51: 0 | AF51: 0 | AG51: 0 | AH51: 0.5 | AI51: 0 | AJ51: 1 | AK51: 0 | AL51: 0 | AM51: 0 | AN51: 0 | AO51: 0 | AP51: 0 | AS51: =IF(Tabulka3[[#This Row],[Region původu]]="V4", 1.25, IF(Tabulka3[[#This Row],[Region původu]]="Německé", 1.1, IF(Tabulka3[[#This Row],[Region původu]]="Balkán", 0.9, IF(Tabulka3[[#This Row],[Region původu]]="Sever", 0.9, 1)))) -> 1.25 | AT51: =Tabulka3[[#This Row],[Úspěšnost]]*AS51 -> 5 | AU51: =Tabulka3[[#This Row],[Reálná cena]]/Tabulka3[[#This Row],[Předpokládaná cena]] -> 4.735632184 | AV51: 0 | AW51: 0 | AX51: 0 | AY51: 1.25 | AZ51: 1.25 | BA51: 0.625 | BB51: 0 | BC51: 0 | BD51: 0 | BE51: 0 | BF51: 0 | BG51: 0 | BH51: 0 | BI51: 0.625 | BJ51: 0 | BK51: 1.25 | BL51: 0 | BM51: 0 | BN51: 0 | BO51: 0 | BP51: 0 | BQ51: 0
B52: 50 | C52: [D57,D58] | D52: Technická univerzita Budapešť | E52: Obecní služba | F52: Školství | G52: DBFO | H52: Hérosz (H) | I52: Maďarsko | J52: V4 | K52: 2007 | L52: 2010 | M52: Střední | N52: 670000000 | O52: 880000000 | P52: 3 | Q52: Fin - makroekon | R52: Provoz | S52: - | T52: - | U52: 1 | V52: 1 | W52: 0 | X52: 0 | Y52: 0.5 | Z52: 0 | AA52: 0 | AB52: 0 | AC52: 0 | AD52: 0 | AE52: 0 | AF52: 0 | AG52: 0 | AH52: 0 | AI52: 0 | AJ52: 0.5 | AK52: 0 | AL52: 0.5 | AM52: 0 | AN52: 0 | AO52: 0 | AP52: 0 | AS52: =IF(Tabulka3[[#This Row],[Region původu]]="V4", 1.25, IF(Tabulka3[[#This Row],[Region původu]]="Německé", 1.1, IF(Tabulka3[[#This Row],[Region původu]]="Balkán", 0.9, IF(Tabulka3[[#This Row],[Region původu]]="Sever", 0.9, 1)))) -> 1.25 | AT52: =Tabulka3[[#This Row],[Úspěšnost]]*AS52 -> 3.75 | AU52: =Tabulka3[[#This Row],[Reálná cena]]/Tabulka3[[#This Row],[Předpokládaná cena]] -> 1.313432836 | AV52: 1.25 | AW52: 1.25 | AX52: 0 | AY52: 0 | AZ52: 0.625 | BA52: 0 | BB52: 0 | BC52: 0 | BD52: 0 | BE52: 0 | BF52: 0 | BG52: 0 | BH52: 0 | BI52: 0 | BJ52: 0 | BK52: 0.625 | BL52: 0 | BM52: 0.625 | BN52: 0 | BO52: 0 | BP52: 0 | BQ52: 0
B53: 51 | C53: [D59] | D53: Dálnice A1 Hamburk - Brémy | E53: Doprava | F53: Silniční infrastruktura | G53: DBFO | H53: Bunte (D) | I53: Německo | J53: Německé | K53: 2008 | L53: 2012 | M53: Velký | N53: 16200000000 | O53: 19400000000 | P53: 3 | Q53: Příjm - poptávka | R53: Příprava | S53: - | T53: - | U53: 1 | V53: 1 | W53: 0 | X53: 0 | Y53: 0 | Z53: 0 | AA53: 0 | AB53: 0 | AC53: 0 | AD53: 1 | AE53: 0 | AF53: 0 | AG53: 0 | AH53: 0 | AI53: 0 | AJ53: 0 | AK53: 0 | AL53: 0 | AM53: 0 | AN53: 0 | AO53: 0 | AP53: 0 | AS53: =IF(Tabulka3[[#This Row],[Region původu]]="V4", 1.25, IF(Tabulka3[[#This Row],[Region původu]]="Německé", 1.1, IF(Tabulka3[[#This Row],[Region původu]]="Balkán", 0.9, IF(Tabulka3[[#This Row],[Region původu]]="Sever", 0.9, 1)))) -> 1.1 | AT53: =Tabulka3[[#This Row],[Úspěšnost]]*AS53 -> 3.3 | AU53: =Tabulka3[[#This Row],[Reálná cena]]/Tabulka3[[#This Row],[Předpokládaná cena]] -> 1.197530864 | AV53: 1.1 | AW53: 1.1 | AX53: 0 | AY53: 0 | AZ53: 0 | BA53: 0 | BB53: 0 | BC53: 0 | BD53: 0 | BE53: 1.1 | BF53: 0 | BG53: 0 | BH53: 0 | BI53: 0 | BJ53: 0 | BK53: 0 | BL53: 0 | BM53: 0 | BN53: 0 | BO53: 0 | BP53: 0 | BQ53: 0
B54: 52 | C54: [D60,D61] | D54: Základní školy v Offenbachu | E54: Obecní služba | F54: Školství | G54: DBFO | H54: Hochtief (D) | I54: Německo | J54: Německé | K54: 2010 | L54: 2013 | M54: Střední | N54: 1500000000 | O54: 1500000000 | P54: 2 | Q54: Oper - údržba | R54: Provoz | S54: - | T54: - | U54: 0 | V54: 0 | W54: 0 | X54: 0 | Y54: 0 | Z54: 0 | AA54: 0 | AB54: 1 | AC54: 0 | AD54: 0 | AE54: 0 | AF54: 0 | AG54: 0 | AH54: 0 | AI54: 0 | AJ54: 0 | AK54: 0 | AL54: 0 | AM54: 0 | AN54: 0 | AO54: 0 | AP54: 0 | AS54: =IF(Tabulka3[[#This Row],[Region původu]]="V4", 1.25, IF(Tabulka3[[#This Row],[Region původu]]="Německé", 1.1, IF(Tabulka3[[#This Row],[Region původu]]="Balkán", 0.9, IF(Tabulka3[[#This Row],[Region původu]]="Sever", 0.9, 1)))) -> 1.1 | AT54: =Tabulka3[[#This Row],[Úspěšnost]]*AS54 -> 2.2 | AU54: =Tabulka3[[#This Row],[Reálná cena]]/Tabulka3[[#This Row],[Předpokládaná cena]] -> 1 | AV54: 0 | AW54: 0 | AX54: 0 | AY54: 0 | AZ54: 0 | BA54: 0 | BB54: 0 | BC54: 1.1 | BD54: 0 | BE54: 0 | BF54: 0 | BG54: 0 | BH54: 0 | BI54: 0 | BJ54: 0 | BK54: 0 | BL54: 0 | BM54: 0 | BN54: 0 | BO54: 0 | BP54: 0 | BQ54: 0
B55: 53 | C55: [D62] | D55: Parkovací dům Villingen-Schwenningen | E55: Doprava | F55: Parkovací infrasturktura | G55: DBFO | H55: PARK SERVICE HÜFNER (D) | I55: Německo | J55: Německé | K55: 2010 | L55: 2011 | M55: Malý | N55: 110000000 | O55: 110000000 | P55: 1 | Q55: - | R55: - | S55: - | T55: - | U55: 0 | V55: 0 | W55: 0 | X55: 0 | Y55: 0 | Z55: 0 | AA55: 0 | AB55: 0 | AC55: 0 | AD55: 0 | AE55: 0 | AF55: 0 | AG55: 0 | AH55: 0 | AI55: 0 | AJ55: 0 | AK55: 0 | AL55: 0 | AM55: 0 | AN55: 0 | AO55: 0 | AP55: 0 | AS55: =IF(Tabulka3[[#This Row],[Region původu]]="V4", 1.25, IF(Tabulka3[[#This Row],[Region původu]]="Německé", 1.1, IF(Tabulka3[[#This Row],[Region původu]]="Balkán", 0.9, IF(Tabulka3[[#This Row],[Region původu]]="Sever", 0.9, 1)))) -> 1.1 | AT55: =Tabulka3[[#This Row],[Úspěšnost]]*AS55 -> 1.1 | AU55: =Tabulka3[[#This Row],[Reálná cena]]/Tabulka3[[#This Row],[Předpokládaná cena]] -> 1 | AV55: 0 | AW55: 0 | AX55: 0 | AY55: 0 | AZ55: 0 | BA55: 0 | BB55: 0 | BC55: 0 | BD55: 0 | BE55: 0 | BF55: 0 | BG55: 0 | BH55: 0 | BI55: 0 | BJ55: 0 | BK55: 0 | BL55: 0 | BM55: 0 | BN55: 0 | BO55: 0 | BP55: 0 | BQ55: 0
B56: 54 | C56: [D63] | D56: Rozšíření dálnice A6 Wiesloch - Rauenberg | E56: Doprava | F56: Silniční infrastruktura | G56: DBFO | H56: Hochtief (D) | I56: Německo | J56: Německé | K56: 2017 | L56: Ve výstavbě | M56: Velmi velký | N56: 32000000000 | O56: 32000000000 | P56: 1 | Q56: - | R56: - | S56: - | T56: - | U56: 0 | V56: 0 | W56: 0 | X56: 0 | Y56: 0 | Z56: 0 | AA56: 0 | AB56: 0 | AC56: 0 | AD56: 0 | AE56: 0 | AF56: 0 | AG56: 0 | AH56: 0 | AI56: 0 | AJ56: 0 | AK56: 0 | AL56: 0 | AM56: 0 | AN56: 0 | AO56: 0 | AP56: 0 | AS56: =IF(Tabulka3[[#This Row],[Region původu]]="V4", 1.25, IF(Tabulka3[[#This Row],[Region původu]]="Německé", 1.1, IF(Tabulka3[[#This Row],[Region původu]]="Balkán", 0.9, IF(Tabulka3[[#This Row],[Region původu]]="Sever", 0.9, 1)))) -> 1.1 | AT56: =Tabulka3[[#This Row],[Úspěšnost]]*AS56 -> 1.1 | AU56: =Tabulka3[[#This Row],[Reálná cena]]/Tabulka3[[#This Row],[Předpokládaná cena]] -> 1 | AV56: 0 | AW56: 0 | AX56: 0 | AY56: 0 | AZ56: 0 | BA56: 0 | BB56: 0 | BC56: 0 | BD56: 0 | BE56: 0 | BF56: 0 | BG56: 0 | BH56: 0 | BI56: 0 | BJ56: 0 | BK56: 0 | BL56: 0 | BM56: 0 | BN56: 0 | BO56: 0 | BP56: 0 | BQ56: 0
B57: 55 | C57: [D64,D65] | D57: Obchvat Ebelsbergu (čtvrť města Linz) | E57: Doprava | F57: Silniční infrastruktura | G57: DBFO | H57: Raiffeisen (A) | I57: Rakousko | J57: Německé | K57: 1997 | L57: 2000 | M57: Střední | N57: 2500000000 | O57: 2300000000 | P57: 2 | Q57: Příp - smlouva | R57: Příprava | S57: - | T57: - | U57: 0 | V57: 0 | W57: 0 | X57: 0 | Y57: 0 | Z57: 0 | AA57: 0 | AB57: 0 | AC57: 0 | AD57: 0 | AE57: 0 | AF57: 0 | AG57: 0 | AH57: 0 | AI57: 0 | AJ57: 1 | AK57: 0 | AL57: 0 | AM57: 0 | AN57: 0 | AO57: 0 | AP57: 0 | AS57: =IF(Tabulka3[[#This Row],[Region původu]]="V4", 1.25, IF(Tabulka3[[#This Row],[Region původu]]="Německé", 1.1, IF(Tabulka3[[#This Row],[Region původu]]="Balkán", 0.9, IF(Tabulka3[[#This Row],[Region původu]]="Sever", 0.9, 1)))) -> 1.1 | AT57: =Tabulka3[[#This Row],[Úspěšnost]]*AS57 -> 2.2 | AU57: =Tabulka3[[#This Row],[Reálná cena]]/Tabulka3[[#This Row],[Předpokládaná cena]] -> 0.92 | AV57: 0 | AW57: 0 | AX57: 0 | AY57: 0 | AZ57: 0 | BA57: 0 | BB57: 0 | BC57: 0 | BD57: 0 | BE57: 0 | BF57: 0 | BG57: 0 | BH57: 0 | BI57: 0 | BJ57: 0 | BK57: 1.1 | BL57: 0 | BM57: 0 | BN57: 0 | BO57: 0 | BP57: 0 | BQ57: 0
B58: 56 | C58: [D64] | D58: Logistické centrum Graz | E58: Doprava | F58: Ostatní dopr. infrstr. | G58: DBFO | H58: Andradit Vermögensverwaltung (A) | I58: Rakousko | J58: Německé | K58: 2000 | L58: 2001 | M58: Střední | N58: 2000000000 | O58: 1600000000 | P58: 1 | Q58: - | R58: - | S58: - | T58: - | U58: 0 | V58: 0 | W58: 0 | X58: 0 | Y58: 0 | Z58: 0 | AA58: 0 | AB58: 0 | AC58: 0 | AD58: 0 | AE58: 0 | AF58: 0 | AG58: 0 | AH58: 0 | AI58: 0 | AJ58: 0 | AK58: 0 | AL58: 0 | AM58: 0 | AN58: 0 | AO58: 0 | AP58: 0 | AS58: =IF(Tabulka3[[#This Row],[Region původu]]="V4", 1.25, IF(Tabulka3[[#This Row],[Region původu]]="Německé", 1.1, IF(Tabulka3[[#This Row],[Region původu]]="Balkán", 0.9, IF(Tabulka3[[#This Row],[Region původu]]="Sever", 0.9, 1)))) -> 1.1 | AT58: =Tabulka3[[#This Row],[Úspěšnost]]*AS58 -> 1.1 | AU58: =Tabulka3[[#This Row],[Reálná cena]]/Tabulka3[[#This Row],[Předpokládaná cena]] -> 0.8 | AV58: 0 | AW58: 0 | AX58: 0 | AY58: 0 | AZ58: 0 | BA58: 0 | BB58: 0 | BC58: 0 | BD58: 0 | BE58: 0 | BF58: 0 | BG58: 0 | BH58: 0 | BI58: 0 | BJ58: 0 | BK58: 0 | BL58: 0 | BM58: 0 | BN58: 0 | BO58: 0 | BP58: 0 | BQ58: 0
B59: 57 | C59: [D66,D67] | D59: Silnice Rv.3 a Rv.25 Løten - Elverum | E59: Doprava | F59: Silniční infrastruktura | G59: DBFO | H59: Skanska (S) | I59: Norsko | J59: Sever | K59: 2018 | L59: 2020 | M59: Velký | N59: 13600000000 | O59: 10900000000 | P59: 1 | Q59: - | R59: - | S59: - | T59: - | U59: 0 | V59: 0 | W59: 0 | X59: 0 | Y59: 0 | Z59: 0 | AA59: 0 | AB59: 0 | AC59: 0 | AD59: 0 | AE59: 0 | AF59: 0 | AG59: 0 | AH59: 0 | AI59: 0 | AJ59: 0 | AK59: 0 | AL59: 0 | AM59: 0 | AN59: 0 | AO59: 0 | AP59: 0 | AS59: =IF(Tabulka3[[#This Row],[Region původu]]="V4", 1.25, IF(Tabulka3[[#This Row],[Region původu]]="Německé", 1.1, IF(Tabulka3[[#This Row],[Region původu]]="Balkán", 0.9, IF(Tabulka3[[#This Row],[Region původu]]="Sever", 0.9, 1)))) -> 0.9 | AT59: =Tabulka3[[#This Row],[Úspěšnost]]*AS59 -> 0.9 | AU59: =Tabulka3[[#This Row],[Reálná cena]]/Tabulka3[[#This Row],[Předpokládaná cena]] -> 0.8014705882 | AV59: 0 | AW59: 0 | AX59: 0 | AY59: 0 | AZ59: 0 | BA59: 0 | BB59: 0 | BC59: 0 | BD59: 0 | BE59: 0 | BF59: 0 | BG59: 0 | BH59: 0 | BI59: 0 | BJ59: 0 | BK59: 0 | BL59: 0 | BM59: 0 | BN59: 0 | BO59: 0 | BP59: 0 | BQ59: 0
B60: 58 | C60: [D68] | D60: Policejní stanice Trondheim | E60: Obecní služba | F60: Bezpečnost | G60: DBFO | H60: N/A | I60: Norsko | J60: Sever | K60: 2004 | L60: 2004 | M60: Střední | N60: 650000000 | O60: 650000000 | P60: 1 | Q60: - | R60: - | S60: - | T60: - | U60: 0 | V60: 0 | W60: 0 | X60: 0 | Y60: 0 | Z60: 0 | AA60: 0 | AB60: 0 | AC60: 0 | AD60: 0 | AE60: 0 | AF60: 0 | AG60: 0 | AH60: 0 | AI60: 0 | AJ60: 0 | AK60: 0 | AL60: 0 | AM60: 0 | AN60: 0 | AO60: 0 | AP60: 0 | AS60: =IF(Tabulka3[[#This Row],[Region původu]]="V4", 1.25, IF(Tabulka3[[#This Row],[Region původu]]="Německé", 1.1, IF(Tabulka3[[#This Row],[Region původu]]="Balkán", 0.9, IF(Tabulka3[[#This Row],[Region původu]]="Sever", 0.9, 1)))) -> 0.9 | AT60: =Tabulka3[[#This Row],[Úspěšnost]]*AS60 -> 0.9 | AU60: =Tabulka3[[#This Row],[Reálná cena]]/Tabulka3[[#This Row],[Předpokládaná cena]] -> 1 | AV60: 0 | AW60: 0 | AX60: 0 | AY60: 0 | AZ60: 0 | BA60: 0 | BB60: 0 | BC60: 0 | BD60: 0 | BE60: 0 | BF60: 0 | BG60: 0 | BH60: 0 | BI60: 0 | BJ60: 0 | BK60: 0 | BL60: 0 | BM60: 0 | BN60: 0 | BO60: 0 | BP60: 0 | BQ60: 0
B61: 59 | C61: [D69,D70] | D61: Letištní železnice Stockholm | E61: Doprava | F61: Železniční infrastruktura | G61: DBFO | H61: Macquarie Capital (AUS) | I61: Švédsko | J61: Sever | K61: 1995 | L61: 1999 | M61: Velký | N61: 10000000000 | O61: 10000000000 | P61: 2 | Q61: Příjm - výnosy | R61: Příprava | S61: - | T61: - | U61: 0.5 | V61: 0 | W61: 0 | X61: 0 | Y61: 0 | Z61: 0 | AA61: 0 | AB61: 0 | AC61: 1 | AD61: 0 | AE61: 0 | AF61: 0 | AG61: 0 | AH61: 0 | AI61: 0 | AJ61: 0.5 | AK61: 0 | AL61: 0 | AM61: 0 | AN61: 0 | AO61: 0 | AP61: 0 | AS61: =IF(Tabulka3[[#This Row],[Region původu]]="V4", 1.25, IF(Tabulka3[[#This Row],[Region původu]]="Německé", 1.1, IF(Tabulka3[[#This Row],[Region původu]]="Balkán", 0.9, IF(Tabulka3[[#This Row],[Region původu]]="Sever", 0.9, 1)))) -> 0.9 | AT61: =Tabulka3[[#This Row],[Úspěšnost]]*AS61 -> 1.8 | AU61: =Tabulka3[[#This Row],[Reálná cena]]/Tabulka3[[#This Row],[Předpokládaná cena]] -> 1 | AV61: 0.45 | AW61: 0 | AX61: 0 | AY61: 0 | AZ61: 0 | BA61: 0 | BB61: 0 | BC61: 0 | BD61: 0.9 | BE61: 0 | BF61: 0 | BG61: 0 | BH61: 0 | BI61: 0 | BJ61: 0 | BK61: 0.45 | BL61: 0 | BM61: 0 | BN61: 0 | BO61: 0 | BP61: 0 | BQ61: 0
B62: 60 | C62: [D71] | D62: Dálnice 4 Järvenpää - Lahti | E62: Doprava | F62: Silniční infrastruktura | G62: DBFO | H62: Skanska (S) | I62: Finsko | J62: Sever | K62: 1997 | L62: 1999 | M62: Velký | N62: 6000000000 | O62: 6000000000 | P62: 1 | Q62: - | R62: - | S62: - | T62: - | U62: 0 | V62: 0 | W62: 0 | X62: 0 | Y62: 0 | Z62: 0 | AA62: 0 | AB62: 0 | AC62: 0 | AD62: 0 | AE62: 0 | AF62: 0 | AG62: 0 | AH62: 0 | AI62: 0 | AJ62: 0 | AK62: 0 | AL62: 0 | AM62: 0 | AN62: 0 | AO62: 0 | AP62: 0 | AS62: =IF(Tabulka3[[#This Row],[Region původu]]="V4", 1.25, IF(Tabulka3[[#This Row],[Region původu]]="Německé", 1.1, IF(Tabulka3[[#This Row],[Region původu]]="Balkán", 0.9, IF(Tabulka3[[#This Row],[Region původu]]="Sever", 0.9, 1)))) -> 0.9 | AT62: =Tabulka3[[#This Row],[Úspěšnost]]*AS62 -> 0.9 | AU62: =Tabulka3[[#This Row],[Reálná cena]]/Tabulka3[[#This Row],[Předpokládaná cena]] -> 1 | AV62: 0 | AW62: 0 | AX62: 0 | AY62: 0 | AZ62: 0 | BA62: 0 | BB62: 0 | BC62: 0 | BD62: 0 | BE62: 0 | BF62: 0 | BG62: 0 | BH62: 0 | BI62: 0 | BJ62: 0 | BK62: 0 | BL62: 0 | BM62: 0 | BN62: 0 | BO62: 0 | BP62: 0 | BQ62: 0
B63: 61 | C63: [D72,73] | D63: Obchvat města Ķekava | E63: Doprava | F63: Silniční infrastruktura | G63: DBFO | H63: TIIC (P) | I63: Lotyšsko | J63: Sever | K63: 2021 | L63: Ve výstavbě | M63: Střední | N63: 1500000000 | O63: 1500000000 | P63: 2 | Q63: Příp - pomalá | R63: Příprava | S63: - | T63: - | U63: 0 | V63: 0 | W63: 0 | X63: 0 | Y63: 0 | Z63: 0 | AA63: 0 | AB63: 0 | AC63: 0 | AD63: 0 | AE63: 0 | AF63: 0 | AG63: 0 | AH63: 0 | AI63: 0 | AJ63: 0 | AK63: 0 | AL63: 0 | AM63: 0 | AN63: 0 | AO63: 1 | AP63: 0 | AS63: =IF(Tabulka3[[#This Row],[Region původu]]="V4", 1.25, IF(Tabulka3[[#This Row],[Region původu]]="Německé", 1.1, IF(Tabulka3[[#This Row],[Region původu]]="Balkán", 0.9, IF(Tabulka3[[#This Row],[Region původu]]="Sever", 0.9, 1)))) -> 0.9 | AT63: =Tabulka3[[#This Row],[Úspěšnost]]*AS63 -> 1.8 | AU63: =Tabulka3[[#This Row],[Reálná cena]]/Tabulka3[[#This Row],[Předpokládaná cena]] -> 1 | AV63: 0 | AW63: 0 | AX63: 0 | AY63: 0 | AZ63: 0 | BA63: 0 | BB63: 0 | BC63: 0 | BD63: 0 | BE63: 0 | BF63: 0 | BG63: 0 | BH63: 0 | BI63: 0 | BJ63: 0 | BK63: 0 | BL63: 0 | BM63: 0 | BN63: 0 | BO63: 0 | BP63: 0.9 | BQ63: 0
AV64: =SUM(AV3:AV63)/SUM($AS$3:$AS$63) -> 0.1318181818 | AW64: =SUM(AW3:AW63)/SUM($AS$3:$AS$63) -> 0.1314393939 | AX64: 0.03068181818 | AY64: 0.221969697 | AZ64: 0.1916666667 | BA64: 0.06287878788 | BB64: 0.02272727273 | BC64: 0.07083333333 | BD64: 0.1397727273 | BE64: 0.1803030303 | BF64: 0.03257575758 | BG64: 0.1189393939 | BH64: 0.1022727273 | BI64: 0.06628787879 | BJ64: 0.02310606061 | BK64: 0.1848484848 | BL64: 0.07234848485 | BM64: 0.08598484848 | BN64: 0.05871212121 | BO64: 0.02878787879 | BP64: 0.1609848485 | BQ64: 0.007575757576
B66: Číselné výsledky analýzy
B68: Vážený průměr úspěšností | D68: =SUMPRODUCT(Tabulka3[Úspěšnost],$AS$3:$AS$63)/SUM(AS3:AS63) -> 2.106818182
B70: Vážený průměr úspěšností dle velikostí
B71: Malý | D71: =(AT5+AT12+AT16+AT20+AT22+AT23+AT24+AT55)/(AS5+AS12+AS16+AS20+AS22+AS23+AS24+AS55) -> 1.634517766
B72: Střední | D72: =(AT4+AT21+AT29+AT32+AT38+AT44+AT45+AT47+AT52+AT54+AT57+AT58+AT60+AT63)/(AS4+AS21+AS29+AS32+AS38+AS44+AS45+AS47+AS52+AS54+AS57+AS58+AS60+AS63) -> 1.897610922
B73: Velký | D73: =(AT6+AT14+AT17+AT18+AT19+AT28+AT26+AT30+AT36+AT37+AT39+AT40+AT46+AT48+AT49+AT50+AT51+AT53+AT59+AT61+AT62)/(AS6+AS14+AS17+AS18+AS19+AS26+AS28+AS30+AS36+AS37+AS39+AS40+AS46+AS48+AS49+AS50+AS51+AS53+AS59+AS61+AS62) -> 2.22247191
B74: Velmi velký | D74: =(AT3+AT7+AT8+AT9+AT10+AT11+AT13+AT15+AT25+AT27+AT31+AT33+AT34+AT35+AT41+AT42+AT43+AT56)/(AS3+AS7+AS8+AS9+AS10+AS11+AS13+AS15+AS25+AS27+AS31+AS33+AS34+AS35+AS41+AS42+AS43+AS56) -> 2.374025974
B76: Průměr úspěšností dle regionů
B77: Severní Evropa | D77: 1.4
B78: Německy mluvící země | D78: 1.66
B79: Západní Evropa | D79: 1.88
B80: Země Visegrádské čtyřky | D80: 2.23
B81: Balkán | D81: 2.5
B82: Jižní Evropa | D82: 2.83

Sheet Seznam zdrojů
B2: [D1] | C2: https://www.ejrcf.or.jp/jrtr/jrtr11/f46_gra.html
B3: [D2] | C3: https://www.centreforpublicimpact.org/case-study/london-undergrounds-failed-ppp
B4: [D3] | C4: https://www.finance.cz/zpravy/finance/278818-slovensko-upustilo-od-stavby-casti-d1-v-ramci-projektu-ppp/
B5: [D4] | C5: https://www.portseurope.com/port-of-adria-accused-of-violating-bar-port-concession-contract/
B6: [D5] | C6: http://www.epppc.hu/documents/cikkek712a1motorwaypoland.pdf
B7: [D6] | C7: https://www.roadtraffic-technology.com/projects/gdansktoturan/
B8: [D7] | C8: https://parkinghalastulecia.pl/en/wiadomosci/first-ppp-car-park-in-wroclaw-now-open/
B9: [D8] | C9: https://www.ppp.gov.pl/baza-zawartych-umow-ppp/
B10: [D9] | C10: https://inwestycje.pl/biznes/gulermak-spodziewa-sie-poczatku-robot-w-projekcie-ppp-w-krakowie-w-ii-kw-2022/
B11: [D10] | C11: https://inzynierbudownictwa.pl/w-olsztynie-powstanie-nowoczesna-elektrocieplownia/
B12: [D11] | C12: https://pie.grupainfomax.eu/wp-content/uploads/2020/09/materialy_pokonferencyjne_16092020.pdf?_x_tr_sl=pl&_x_tr_tl=cs&_x_tr_hl=cs
B13: [D12] | C13: https://gazetazoliborza.pl/2019/02/miasto-stawia-na-partnerstwo-publiczno-prawne-w-sprawie-parkingow-podziemnych-nie-ma-w-warszawie-deficytu-parkingowego/
B14: [D13] | C14: https://www.sierpc.pl/index.php?option=com_content&view=article&id=2477&catid=4&Itemid=60
B15: [D14] | C15: https://gazetawroclawska.pl/vozilla-znika-z-wroclawia-miejska-wypozyczalnia-aut-konczy-dzialalnosc-co-z-samochodami/ar/c1-14720892
B16: [D15] | C16: https://op.europa.eu/webpub/eca/special-reports/ppp-9-2018/cs/
B17: [D16] | C17: https://www.worldhighways.com/wh8/wh10/news/strabag-refinances-irelands-n17n18-project-between-gort-and-tuam
B18: [D17] | C18: https://www.tii.ie/roads-tolling/projects-and-improvements/ppp/n7-limerick-southern-ring/index.xml
B19: [D18] | C19: https://www.m50concession.com/
B20: [D19] | C20: https://www.ndfa.ie/project/social-housing-ppp-bundle-1
B21: [D20] | C21: https://www.sinnfein.ie/contents/53356
B22: [D21] | C22: https://www.google.com/url?sa=t&rct=j&q=&esrc=s&source=web&cd=&ved=2ahUKEwinrIbJ5Yf1AhULRfEDHZ4ODtAQFnoECAcQAQ&url=https%3A%2F%2Fwww.transnav.eu%2Ffiles%2FThe%2520Public%2520Private%2520Partnership%2520Model%2520on%2520Which%2520the%2520National%2520Maritime%2520College%2520of%2520Ireland%2520Was%2520Conceived%2520and%2520Delivered%2C63.pdf&usg=AOvVaw1Dwxf9eRLv4k402-knAG-x
B23: [D22] | C23: https://ijglobal.com/articles/32241/barts-and-the-royal-london-hospitals-pfi
B24: [D23] | C24: https://www.skanska.se/49f1f8/siteassets/om-skanska/press/nks-i-media/barts-white-paper-single-pages-brochure-format.pdf
B25: [D24] | C25: https://www.pppforum.com/case-studies/east-dunbartonshire
B26: [D25] | C26: https://www.heraldscotland.com/default_content/12752964.delay-fears-six-schools-built-ppp-project/
B27: [D26] | C27: https://www.sunderlandecho.com/news/transport/pfi-anger-cost-maintaining-a19-north-east-rises-almost-ps280m-814975
B28: [D27] | C28: https://www.pfie.com/story/1267054/skynet-5-takes-pfi-into-space-3b9pxkx1gk
B29: [D28] | C29: https://www.bouygues-tp.com/en/projects/nimes-montpellier-railway-bypass
B30: [D29] | C30: https://www.actu-transport-logistique.fr/ferroviaire/ferroviaire-le-contournement-de-nimes-et-de-montpellier-redonne-des-capacites-de-developpement-au-fret-454463.php
B31: [D30] | C31: https://library.pppknowledgelab.org/documents/2851/download
B32: [D31] | C32: http://l2-marseille.com/
B33: [D32] | C33: https://marsactu.fr/rocade-l2-24-000-euros-dastreinte-journaliere-pour-la-filiale-de-bouygues/
B34: [D33] | C34: https://www.tpbm-presse.com/marseille-eurovia-en-charge-des-amenagements-de-surface-de-la-l2-nord-2915.html
B35: [D34] | C35: https://ijglobal.com/articles/65033/the-netherlands-a12-highway-ppp
B36: [D35] | C36: https://www.frateurdepourcq.be/en/portfolio/brabo/
B37: [D36] | C37: https://www.ap1europistas.es/
B38: [D37] | C38: https://www.ap1europistas.es/
B39: [D38] | C39: https://es.wikipedia.org/wiki/C-25
B40: [D39] | C40: https://www.superstradapedemontanaveneta.it/superstrada-pedemontana-veneta/
B41: [D40] | C41: https://angelidelsuolo.wordpress.com/2021/11/01/la-superstrada-pedemontana-veneta-una-cesura-di-94-5-km-tra-treviso-e-vicenza/
B42: [D41] | C42: https://en.wikipedia.org/wiki/Olympia_Odos
B43: [D42] | C43: https://en.wikipedia.org/wiki/Moreas_Motorway
B44: [D43] | C44: http://sdit.gov.gr/en/Approved-projects/construction-and-maintenance-7-new-fire-stations
B45: [D44] | C45: https://www.aik-invest.hr/en/ppp/registry/
B46: [D45] | C46: https://ppp-ebrd.com/review.php?country=Croatia
B47: [D46] | C47: http://stadiumdb.com/news/2015/08/slovenia_shockingly_empty_national_stadium_in_ljubljana
B48: [D47] | C48: http://www.ier.si/files/Working%20paper-68.pdf
B49: [D48] | C49: https://bankwatch.org/public-private-partnerships/case-studies/belgrade-incinerator-ppp-belgrade-serbia
B50: [D49] | C50: https://balkangreenenergynews.com/public-private-partnership-misses-deadline-to-shut-belgrades-vinca-landfill/
B51: [D50] | C51: https://bankwatch.org/public-private-partnerships/case-studies/palace-arts-budapest-hungary
B52: [D51] | C52: https://ppiaf.org/sites/ppiaf.org/files/documents/toolkits/highwaystoolkit/6/pdf-version/hungary.pdf
B53: [D52] | C53: https://bankwatch.org/public-private-partnerships/case-studies/m1m15-and-m5-motorways-hungary
B54: [D53] | C54: https://demnet.hu/en/7-percent-gdp-wasted-on-ppp-in-hungary/
B55: [D54] | C55: https://ijglobal.com/articles/50197/hungarys-m6-phase-ii
B56: [D55] | C56: https://bankwatch.org/public-private-partnerships/case-studies/palace-arts-budapest-hungary
B57: [D56] | C57: https://demnet.hu/en/billionaire-made-superprofit-on-art-ppp-in-budapest/
B58: [D57] | C58: https://www.origo.hu/gazdasag/20090809-muegyetem-lagymanyosi-ppp-beruhazas-q-epulet-finanszirozasa.html
B59: [D58] | C59: https://hvg.hu/karrier/200945_EGYETEMI_PPPGoNDoK_A_fele_sem_igaz
B60: [D59] | C60: https://second.wiki/wiki/a1_mobil
B61: [D60] | C61: https://www.ppp-projektdatenbank.de/index.php?id=27&tx_ppp_controller_searchmap%5BprojectId%5D=270&tx_ppp_controller_searchmap%5Baction%5D=showProject
B62: [D61] | C62: https://www.iz.de/projekte/news/-ppp-war-dem-kreis-offenbach-zu-teuer-155752?crefresh=1
B63: [D62] | C63: https://www.ppp-projektdatenbank.de/index.php?id=27&tx_ppp_controller_searchmap%5BprojectId%5D=272&tx_ppp_controller_searchmap%5Baction%5D=showProject
B64: [D63] | C64: https://www.hochtief-pppsolutions.com/projekte/details/a6-highway
B65: [D64] | C65: http://www.bestufs.net/download/Workshops/BESTUFS_I/Malaga_Sep02/BESTUFS_Malaga_Sep02_Dorner_Econsult_2.pdf
B66: [D65] | C66: https://ooe.kpoe.at/article.php/20110210095843119
B67: [D66] | C67: https://www.infrapppworld.com/news/megaproject-1272-norway-s-first-ppp-project-in-over-a-decade-reaches-financial-close
B68: [D67] | C68: https://www.veier24.no/artikler/ops-prosjektet-rv-3-rv-25-karet-til-arets-anlegg-2020/512992
B69: [D68] | C69: https://iglcstorage.blob.core.windows.net/papers/attachment-0c3b09b3-06ad-4dd7-ac6f-099456fcc2f2.pdf
B70: [D69] | C70: https://en.wikipedia.org/wiki/Arlanda_Line
B71: [D70] | C71: https://www.oecd.org/mena/competitiveness/39303611.pdf
B72: [D71] | C72: https://www.google.com/url?sa=t&rct=j&q=&esrc=s&source=web&cd=&cad=rja&uact=8&ved=2ahUKEwjNuILPxJH1AhUBKuwKHYDKDLYQFnoECAcQAQ&url=https%3A%2F%2Fwiki.unece.org%2Fdownload%2Fattachments%2F25265810%2FBrussels-seppo-maekinen-ppp-experiences-in-finland.pdf%3Fversion%3D1%26modificationDate%3D1454319973707%26api%3Dv2&usg=AOvVaw26S25EqQNhBrVCqfXJmb-7
B73: [D72] | C73: https://www.nib.int/cases/connecting-the-region-through-public-private-partnerships
B74: [D73] | C74: https://lvportals.lv/norises/278623-kekavas-apvedcels-bus-pirmais-ppp-projekts-latvija-2016

Sheet Graf1
A3: Zákl. kategorie | B3: Počet z Zákl. kategorie
A4: Doprava | B4: 43
A5: Obecní služba | B5: 18

Sheet Graf2
A3: Forma | B3: Počet z Forma
A4: DBMO | B4: 56
A5: MO | B5: 5

Sheet Graf3
A3: Region původu | B3: Počet z Region původu
A4: Balkán | B4: 6
A5: Jih | B5: 6
A6: Německé | B6: 6
A7: Sever | B7: 5
A8: V4 | B8: 22
A9: Západ | B9: 16

Sheet Graf4
A3: Velikost | B3: Počet z Velikost
A4: Malý | B4: 8
A5: Střední | B5: 14
A6: Velký | B6: 21
A7: Velmi velký | B7: 18

Sheet Graf5
A3: Úspěšnost | B3: Počet z Úspěšnost
A4: 1 | B4: 25
A5: 2 | B5: 14
A6: 3 | B6: 13
A7: 4 | B7: 9

Sheet Graf6
A1: Popisky řádků | B1: Počet z Úspěšnost
A2: Malý | B2: 8
A3: 1 | B3: 5
A4: 2 | B4: 2
A5: 4 | B5: 1
A6: Střední | B6: 14
A7: 1 | B7: 6
A8: 2 | B8: 5
A9: 3 | B9: 2
A10: 4 | B10: 1
A11: Velký | B11: 21
A12: 1 | B12: 8
A13: 2 | B13: 4
A14: 3 | B14: 6
A15: 4 | B15: 3
A16: Velmi velký | B16: 18
A17: 1 | B17: 6
A18: 2 | B18: 3
A19: 3 | B19: 5
A20: 4 | B20: 4
A21: Celkový součet | B21: 61

Sheet Graf7
B2: Vážený průměr úspěšností dle velikostí
B3: Malý | D3: 1.63
B4: Střední | D4: 1.99
B5: Velký | D5: 2.22
B6: Velmi velký | D6: 2.37

Sheet Graf8
B2: Rok zahájení | C2: Úspěšnost
B3: 1988 | C3: 3
B4: 1993 | C4: 4
B5: 1995 | C5: 2
B6: 1996 | C6: 3
B7: 1997 | C7: 2
B8: 1997 | C8: 1
B9: 1998 | C9: 4
B10: 1998 | C10: 3
B11: 2000 | C11: 4
B12: 2000 | C12: 1
B13: 2001 | C13: 1
B14: 2002 | C14: 4
B15: 2003 | C15: 1
B16: 2004 | C16: 1
B17: 2004 | C17: 1
B18: 2006 | C18: 4
B19: 2006 | C19: 1
B20: 2006 | C20: 2
B21: 2006 | C21: 3
B22: 2006 | C22: 3
B23: 2007 | C23: 1
B24: 2007 | C24: 2
B25: 2007 | C25: 2
B26: 2007 | C26: 1
B27: 2007 | C27: 3
B28: 2008 | C28: 3
B29: 2008 | C29: 3
B30: 2008 | C30: 3
B31: 2009 | C31: 1
B32: 2010 | C32: 2
B33: 2010 | C33: 4
B34: 2010 | C34: 1
B35: 2010 | C35: 3
B36: 2010 | C36: 3
B37: 2010 | C37: 2
B38: 2010 | C38: 1
B39: 2011 | C39: 4
B40: 2011 | C40: 1
B41: 2011 | C41: 3
B42: 2012 | C42: 1
B43: 2012 | C43: 2
B44: 2012 | C44: 1
B45: 2013 | C45: 1
B46: 2013 | C46: 2
B47: 2013 | C47: 1
B48: 2013 | C48: 2
B49: 2013 | C49: 1
B50: 2014 | C50: 2
B51: 2015 | C51: 1
B52: 2016 | C52: 1
B53: 2017 | C53: 2
B54: 2017 | C54: 4
B55: 2017 | C55: 4
B56: 2017 | C56: 1
B57: 2018 | C57: 1
B58: 2018 | C58: 1
B59: 2018 | C59: 1
B60: 2019 | C60: 1
B61: 2019 | C61: 2
B62: 2020 | C62: 3
B63: 2021 | C63: 2

Sheet Graf9
B2: Provoz | C2: 9
B3: Příprava | C3: 22
B4: Realizace | C4: 5

Sheet Tabulka13
B2: Kategorie | C2: Riziko | D2: Stupeň pravděpod. | E2: % předpoklad | F2: % reálné | G2: Změna
B3: Finanční rizika | C3: Problémy s financováním projektu | D3: 1 | E3: 0.01 | F3: 0.13 | G3: Značné zvýšení
C4: Inflace, změna úrokových sazeb | D4: 2 | E4: 0.03 | F4: 0.13 | G4: Značné zvýšení
C5: Neposkytnutí bankovních záruk | D5: 2 | E5: 0.03 | F5: 0.03 | G5: Cca odpovídá
B6: Konstrukční rizika | C6: Překročení nákladů z technických důvodů | D6: 4 | E6: 0.1 | F6: 0.22 | G6: Značné zvýšení
C7: Zdržení projektu z technických důvodů | D7: 5 | E7: 0.15 | F7: 0.19 | G7: Cca odpovídá
C8: Nesplnění požadavků na kvalitu | D8: 2 | E8: 0.03 | F8: 0.06 | G8: Zvýšení
B9: Operační rizika | C9: Neplnění podmínek poskytování služby | D9: 2 | E9: 0.03 | F9: 0.02 | G9: Cca odpovídá
C10: Neplnění podmínek údržby | D10: 3 | E10: 0.05 | F10: 0.07 | G10: Cca odpovídá
B11: Příjmová rizika | C11: Nižší výnosy oproti předpokladu | D11: 4 | E11: 0.1 | F11: 0.14 | G11: Zvýšení
C12: Nižší poptávka oproti předpokladu | D12: 5 | E12: 0.15 | F12: 0.18 | G12: Cca odpovídá
C13: Neschopnost splácet ze strany veřeného sektoru | D13: 1 | E13: 0.01 | F13: 0.03 | G13: Cca odpovídá
B14: Politická rizika | C14: Změna přístupu státu k PPP projektům, legislativní změny | D14: 2 | E14: 0.03 | F14: 0.12 | G14: Značné zvýšení
C15: Vypovězení smlouvy | D15: 3 | E15: 0.05 | F15: 0.1 | G15: Značné zvýšení
C16: Korupční prostředí (předražení zakázky) | D16: 4 | E16: 0.1 | F16: 0.07 | G16: Cca odpovídá
C17: Geopolitická rizika | D17: 2 | E17: 0.03 | F17: 0.02 | G17: Cca odpovídá
B18: Přípravová rizika | C18: Nevýhodně nastavená smlouva | D18: 3 | E18: 0.05 | F18: 0.18 | G18: Značné zvýšení
C19: Špatný výběr partnera | D19: 2 | E19: 0.03 | F19: 0.07 | G19: Zvýšení
C20: Nedostatečná konkurence | D20: 3 | E20: 0.05 | F20: 0.09 | G20: Zvýšení
C21: Neobdržení povolení (stavebního, územního, EIA…) | D21: 4 | E21: 0.1 | F21: 0.06 | G21: Snížení
C22: Nedostatečná příprava plochy (odkup pozemků…) | D22: 4 | E22: 0.1 | F22: 0.03 | G22: Snížení
C23: Značně pomalá příprava | D23: 4 | E23: 0.1 | F23: 0.16 | G23: Značné zvýšení
B24: Ostatní rizika | C24: Vyšší moc | D24: 1 | E24: 0.01 | F24: 0.01 | G24: Cca odpovídá

Sheet Tabulka14
B2: Kategorie | C2: Riziko | D2: Předpokl. stupeň dopadu | E2: Aktualizovaný stupeň dopadu | F2: Poznámky
B3: Finanční rizika | C3: Problémy s financováním projektu | D3: 4 | E3: 3 - 5 | F3: Riziko často důvodem neúspěchu
C4: Inflace, změna úrokových sazeb | D4: 2 | E4: 2 - 4 | F4: Riziko často důvodem neúspěchu
C5: Neposkytnutí bankovních záruk | D5: 5 | E5: 4 - 5 | F5: Riziko překonatelné -> pomalejší příprava
B6: Konstrukční rizika | C6: Překročení nákladů z technických důvodů | D6: 1 - 4 | E6: 1 - 2 | F6: Náklady nebývají v poměru k těm vzniklým v přípavě tak veliké
C7: Zdržení projektu z technických důvodů | D7: 3 - 4 | E7: 3 - 4 | F7: Dopad odpovídá
C8: Nesplnění požadavků na kvalitu | D8: 3 - 4 | E8: 3 - 4 | F8: Dopad odpovídá
B9: Operační rizika | C9: Neplnění podmínek poskytování služby | D9: 3 - 5 | E9: 3 - 5 | F9: Dopad odpovídá
C10: Neplnění podmínek údržby | D10: 2 - 3 | E10: 2 - 4 | F10: Riziko často důvodem neúspěchu
B11: Příjmová rizika | C11: Nižší výnosy oproti předpokladu | D11: 2 - 4 | E11: 3 - 4 | F11: Riziko často důvodem neúspěchu
C12: Nižší poptávka oproti předpokladu | D12: 3 - 4 | E12: 3 - 5 | F12: Riziko často důvodem neúspěchu
C13: Neschopnost splácet ze strany veřeného sektoru | D13: 5 | E13: 5 | F13: Dopad odpovídá
B14: Politická rizika | C14: Změna přístupu státu k PPP projektům, legislativní změny | D14: 3 | E14: 3 - 4 | F14: Mnoho příkladů přepisování smluv a změn v pohledu státní správy
C15: Vypovězení smlouvy | D15: 5 | E15: 5 | F15: Dopad odpovídá
C16: Korupční prostředí (předražení zakázky) | D16: 3 - 5 | E16: 3 - 5 | F16: Dopad odpovídá
C17: Geopolitická rizika | D17: 4 | E17: 4 | F17: Dopad odpovídá
B18: Přípravová rizika | C18: Nevýhodně nastavená smlouva | D18: 2 - 5 | E18: 2 - 5 | F18: Dopad odpovídá
C19: Špatný výběr partnera | D19: 3 - 5 | E19: 3 - 5 | F19: Dopad odpovídá
C20: Nedostatečná konkurence | D20: 4 | E20: 4 - 5 | F20: Konkurence není obecně tak vysoká, jaký byl předpoklad
C21: Neobdržení povolení (stavebního, územního, EIA…) | D21: 4 | E21: 3 | F21: Riziko překonatelné -> pomalejší příprava
C22: Nedostatečná příprava plochy (odkup pozemků…) | D22: 2 | E22: 3 | F22: Minimálně v jednom případě hlavní důvod neúspěchu
C23: Značně pomalá příprava | D23: 3 | E23: 3 | F23: Dopad odpovídá
B24: Ostatní rizika | C24: Vyšší moc | D24: 1 - 5 | E24: 1 - 5 | F24: Dopad odpovídá
